Workbook

Sheet 二季度
A1: 保山电力昌宁分公司2024年二季度配电网接入能力公示表
A2: 序号 | B2: 设备名称（准确、完整描述配变名称） | C2: 电压等级(kV) | D2: 季度平均负载率（%） | E2: 季度平均负载率（%） | F2: 最大负载率（%） | G2: 最大负载率（%） | H2: 负载情况（轻载、重载、过载） | I2: 可开放容量(kVA) | J2: 是否接入受限（是/否） | K2: 覆盖区域（以“县区-乡镇或街道办-村委会或社区-村或小区”的地址层级进行公示） | L2: 容量
A3: 1 | B3: 10kV达丙街线422回路达丙社区皂角树1#台变 | C3: 10kV | D3: 0.0821 | E3: =D3*100 -> 8.21 | F3: =G3*100 -> 14.74 | G3: 0.1474 | H3: =_xlfn.IFS(D3<30%,"轻载",80%<D3<100%,"重载",D3>100%,"过载") -> 轻载 | I3: =(L3-L3*D3)*0.9 -> 260.22 | J3: =IF(H3="过载","是","否") -> 否 | K3: 昌宁县田园镇达丙社区 | L3: 315
A4: 2 | B4: 10kV达丙街线422回路达丙社区茶厂路口台变 | C4: 10kV | D4: 0.1993 | E4: =D4*100 -> 19.93 | F4: =G4*100 -> 30.36 | G4: 0.3036 | H4: =_xlfn.IFS(D4<30%,"轻载",80%<D4<100%,"重载",D4>100%,"过载") -> 轻载 | I4: =(L4-L4*D4)*0.9 -> 227.01 | J4: =IF(H4="过载","是","否") -> 否 | K4: 昌宁县田园镇达丙社区 | L4: 315
A5: 3 | B5: 10kV达丙街线422回路达丙社区茶韵小院台变 | C5: 10kV | D5: 0.0156 | E5: =D5*100 -> 1.56 | F5: =G5*100 -> 6.81 | G5: 0.0681 | H5: =_xlfn.IFS(D5<30%,"轻载",80%<D5<100%,"重载",D5>100%,"过载") -> 轻载 | I5: =(L5-L5*D5)*0.9 -> 558.15 | J5: =IF(H5="过载","是","否") -> 否 | K5: 昌宁县田园镇达丙社区 | L5: 630
A6: 4 | B6: 10kV达丙街线422回路达丙社区茶艺坊1#台变 | C6: 10kV | D6: 0.1021 | E6: =D6*100 -> 10.21 | F6: =G6*100 -> 17.52 | G6: 0.1752 | H6: =_xlfn.IFS(D6<30%,"轻载",80%<D6<100%,"重载",D6>100%,"过载") -> 轻载 | I6: =(L6-L6*D6)*0.9 -> 509.14 | J6: =IF(H6="过载","是","否") -> 否 | K6: 昌宁县田园镇达丙社区 | L6: 630
A7: 5 | B7: 10kV达丙街线422回路达丙社区茶艺坊2#台变 | C7: 10kV | D7: 0.0294 | E7: =D7*100 -> 2.94 | F7: =G7*100 -> 10.87 | G7: 0.1087 | H7: =_xlfn.IFS(D7<30%,"轻载",80%<D7<100%,"重载",D7>100%,"过载") -> 轻载 | I7: =(L7-L7*D7)*0.9 -> 698.86 | J7: =IF(H7="过载","是","否") -> 否 | K7: 昌宁县田园镇达丙社区 | L7: 800
A8: 6 | B8: 10kV达丙街线422回路达丙社区茶艺坊3#台变 | C8: 10kV | D8: 0.0679 | E8: =D8*100 -> 6.79 | F8: =G8*100 -> 17.06 | G8: 0.1706 | H8: =_xlfn.IFS(D8<30%,"轻载",80%<D8<100%,"重载",D8>100%,"过载") -> 轻载 | I8: =(L8-L8*D8)*0.9 -> 528.50 | J8: =IF(H8="过载","是","否") -> 否 | K8: 昌宁县田园镇达丙社区 | L8: 630
A9: 7 | B9: 10kV达丙街线422回路达丙社区达丙安置区1#台变 | C9: 10kV | D9: 0.1457 | E9: =D9*100 -> 14.57 | F9: =G9*100 -> 40.91 | G9: 0.4091 | H9: =_xlfn.IFS(D9<30%,"轻载",80%<D9<100%,"重载",D9>100%,"过载") -> 轻载 | I9: =(L9-L9*D9)*0.9 -> 242.19 | J9: =IF(H9="过载","是","否") -> 否 | K9: 昌宁县田园镇达丙社区 | L9: 315
A10: 8 | B10: 10kV达丙街线422回路达丙社区达丙安置区2#台变 | C10: 10kV | D10: 0.1338 | E10: =D10*100 -> 13.38 | F10: =G10*100 -> 41.09 | G10: 0.4109 | H10: =_xlfn.IFS(D10<30%,"轻载",80%<D10<100%,"重载",D10>100%,"过载") -> 轻载 | I10: =(L10-L10*D10)*0.9 -> 245.57 | J10: =IF(H10="过载","是","否") -> 否 | K10: 昌宁县田园镇达丙社区 | L10: 315
A11: 9 | B11: 10kV达丙街线422回路达丙社区达丙安置区3#台变 | C11: 10kV | D11: 0.0496 | E11: =D11*100 -> 4.96 | F11: =G11*100 -> 14.95 | G11: 0.1495 | H11: =_xlfn.IFS(D11<30%,"轻载",80%<D11<100%,"重载",D11>100%,"过载") -> 轻载 | I11: =(L11-L11*D11)*0.9 -> 538.88 | J11: =IF(H11="过载","是","否") -> 否 | K11: 昌宁县田园镇达丙社区 | L11: 630
A12: 10 | B12: 10kV达丙街线422回路达丙社区福园小区台变 | C12: 10kV | D12: 0.1363 | E12: =D12*100 -> 13.63 | F12: =G12*100 -> 28.87 | G12: 0.2887 | H12: =_xlfn.IFS(D12<30%,"轻载",80%<D12<100%,"重载",D12>100%,"过载") -> 轻载 | I12: =(L12-L12*D12)*0.9 -> 194.32 | J12: =IF(H12="过载","是","否") -> 否 | K12: 昌宁县田园镇达丙社区 | L12: 250
A13: 11 | B13: 10kV达丙街线422回路达丙社区龚家队台变 | C13: 10kV | D13: 0.1117 | E13: =D13*100 -> 11.17 | F13: =G13*100 -> 31.19 | G13: 0.3119 | H13: =_xlfn.IFS(D13<30%,"轻载",80%<D13<100%,"重载",D13>100%,"过载") -> 轻载 | I13: =(L13-L13*D13)*0.9 -> 251.83 | J13: =IF(H13="过载","是","否") -> 否 | K13: 昌宁县田园镇达丙社区 | L13: 315
A14: 12 | B14: 10kV达丙街线422回路达丙社区达丙街1#台变 | C14: 10kV | D14: 0.1046 | E14: =D14*100 -> 10.46 | F14: =G14*100 -> 29.01 | G14: 0.2901 | H14: =_xlfn.IFS(D14<30%,"轻载",80%<D14<100%,"重载",D14>100%,"过载") -> 轻载 | I14: =(L14-L14*D14)*0.9 -> 253.85 | J14: =IF(H14="过载","是","否") -> 否 | K14: 昌宁县田园镇达丙社区 | L14: 315
A15: 13 | B15: 10kV达丙街线422回路达丙社区达丙街2#台变 | C15: 10kV | D15: 0.2173 | E15: =D15*100 -> 21.73 | F15: =G15*100 -> 43.19 | G15: 0.4319 | H15: 轻载 | I15: =(L15-L15*D15)*0.9 -> 221.90 | J15: =IF(H15="过载","是","否") -> 否 | K15: 昌宁县田园镇达丙社区 | L15: 315
A16: 14 | B16: 10kV达丙街线422回路达丙社区达丙街3#台变 | C16: 10kV | D16: 0.3705 | E16: =D16*100 -> 37.05 | F16: =G16*100 -> 70.38 | G16: 0.7038 | H16: 经济运行 | I16: =(L16-L16*D16)*0.9 -> 178.46 | J16: =IF(H16="过载","是","否") -> 否 | K16: 昌宁县田园镇达丙社区 | L16: 315
A17: 15 | B17: 10kV达丙街线422回路达丙社区达丙街4#台变 | C17: 10kV | D17: 0.1534 | E17: =D17*100 -> 15.34 | F17: =G17*100 -> 53.56 | G17: 0.5356 | H17: =_xlfn.IFS(D17<30%,"轻载",80%<D17<100%,"重载",D17>100%,"过载") -> 轻载 | I17: =(L17-L17*D17)*0.9 -> 304.78 | J17: =IF(H17="过载","是","否") -> 否 | K17: 昌宁县田园镇达丙社区 | L17: 400
A18: 16 | B18: 10kV达丙街线422回路达丙社区达丙街5#台变 | C18: 10kV | D18: 0.1726 | E18: =D18*100 -> 17.26 | F18: =G18*100 -> 38.41 | G18: 0.3841 | H18: =_xlfn.IFS(D18<30%,"轻载",80%<D18<100%,"重载",D18>100%,"过载") -> 轻载 | I18: =(L18-L18*D18)*0.9 -> 372.33 | J18: =IF(H18="过载","是","否") -> 否 | K18: 昌宁县田园镇达丙社区 | L18: 500
A19: 17 | B19: 10kV达丙街线422回路达丙社区达丙街6#台变 | C19: 10kV | D19: 0.0991 | E19: =D19*100 -> 9.91 | F19: =G19*100 -> 42.95 | G19: 0.4295 | H19: =_xlfn.IFS(D19<30%,"轻载",80%<D19<100%,"重载",D19>100%,"过载") -> 轻载 | I19: =(L19-L19*D19)*0.9 -> 202.70 | J19: =IF(H19="过载","是","否") -> 否 | K19: 昌宁县田园镇达丙社区 | L19: 250
A20: 18 | B20: 10kV达丙街线422回路达丙社区达丙街7#台变 | C20: 10kV | D20: 0.0686 | E20: =D20*100 -> 6.86 | F20: =G20*100 -> 19.88 | G20: 0.1988 | H20: =_xlfn.IFS(D20<30%,"轻载",80%<D20<100%,"重载",D20>100%,"过载") -> 轻载 | I20: =(L20-L20*D20)*0.9 -> 264.05 | J20: =IF(H20="过载","是","否") -> 否 | K20: 昌宁县田园镇达丙社区 | L20: 315
A21: 19 | B21: 10kV达丙街线422回路达丙社区小河边3#台变 | C21: 10kV | D21: 0.1462 | E21: =D21*100 -> 14.62 | F21: =G21*100 -> 36.06 | G21: 0.3606 | H21: =_xlfn.IFS(D21<30%,"轻载",80%<D21<100%,"重载",D21>100%,"过载") -> 轻载 | I21: =(L21-L21*D21)*0.9 -> 242.05 | J21: =IF(H21="过载","是","否") -> 否 | K21: 昌宁县田园镇达丙社区 | L21: 315
A22: 20 | B22: 10kV达丙街线422回路达丙社区打油寨台变 | C22: 10kV | D22: 0.1199 | E22: =D22*100 -> 11.99 | F22: =G22*100 -> 32.84 | G22: 0.3284 | H22: =_xlfn.IFS(D22<30%,"轻载",80%<D22<100%,"重载",D22>100%,"过载") -> 轻载 | I22: =(L22-L22*D22)*0.9 -> 249.51 | J22: =IF(H22="过载","是","否") -> 否 | K22: 昌宁县田园镇达丙社区 | L22: 315
A23: 21 | B23: 10kV达丙街线422回路达丙社区恩红世纪城1#台变 | C23: 10kV | D23: 0.091 | E23: =D23*100 -> 9.08 | F23: =G23*100 -> 10.91 | G23: 0.1091 | H23: =_xlfn.IFS(D23<30%,"轻载",80%<D23<100%,"重载",D23>100%,"过载") -> 轻载 | I23: =(L23-L23*D23)*0.9 -> 654.60 | J23: =IF(H23="过载","是","否") -> 否 | K23: 昌宁县田园镇达丙社区 | L23: 800
A24: 22 | B24: 10kV达丙街线422回路达丙社区恩红世纪城2#台变 | C24: 10kV | D24: 0.035 | E24: =D24*100 -> 3.48 | F24: =G24*100 -> 9.19 | G24: 0.0919 | H24: =_xlfn.IFS(D24<30%,"轻载",80%<D24<100%,"重载",D24>100%,"过载") -> 轻载 | I24: =(L24-L24*D24)*0.9 -> 694.93 | J24: =IF(H24="过载","是","否") -> 否 | K24: 昌宁县田园镇达丙社区 | L24: 800
A25: 23 | B25: 10kV达丙街线422回路达丙社区恩红世纪城3#台变 | C25: 10kV | D25: 0.027 | E25: =D25*100 -> 2.70 | F25: =G25*100 -> 7.87 | G25: 0.0787 | H25: =_xlfn.IFS(D25<30%,"轻载",80%<D25<100%,"重载",D25>100%,"过载") -> 轻载 | I25: =(L25-L25*D25)*0.9 -> 700.55 | J25: =IF(H25="过载","是","否") -> 否 | K25: 昌宁县田园镇达丙社区 | L25: 800
A26: 24 | B26: 10kV达丙街线422回路达丙社区福慧路安置区台变 | C26: 10kV | D26: 0.033 | E26: =D26*100 -> 3.30 | F26: =G26*100 -> 11.1 | G26: 0.111 | H26: =_xlfn.IFS(D26<30%,"轻载",80%<D26<100%,"重载",D26>100%,"过载") -> 轻载 | I26: =(L26-L26*D26)*0.9 -> 435.13 | J26: =IF(H26="过载","是","否") -> 否 | K26: 昌宁县田园镇达丙社区 | L26: 500
A27: 25 | B27: 10kV达丙街线422回路达丙社区麻栗树1#台变 | C27: 10kV | D27: 0.021 | E27: =D27*100 -> 2.13 | F27: =G27*100 -> 39.72 | G27: 0.3972 | H27: =_xlfn.IFS(D27<30%,"轻载",80%<D27<100%,"重载",D27>100%,"过载") -> 轻载 | I27: =(L27-L27*D27)*0.9 -> 220.20 | J27: =IF(H27="过载","是","否") -> 否 | K27: 昌宁县田园镇达丙社区 | L27: 250
A28: 26 | B28: 10kV达丙街线422回路达丙社区麻栗树2#台变 | C28: 10kV | D28: 0.105 | E28: =D28*100 -> 10.46 | F28: =G28*100 -> 36.78 | G28: 0.3678 | H28: =_xlfn.IFS(D28<30%,"轻载",80%<D28<100%,"重载",D28>100%,"过载") -> 轻载 | I28: =(L28-L28*D28)*0.9 -> 161.16 | J28: =IF(H28="过载","是","否") -> 否 | K28: 昌宁县田园镇达丙社区 | L28: 200
A29: 27 | B29: 10kV达丙街线422回路达丙社区上达丙1#台变 | C29: 10kV | D29: 0.2086 | E29: =D29*100 -> 20.86 | F29: =G29*100 -> 63.68 | G29: 0.6368 | H29: 轻载 | I29: =(L29-L29*D29)*0.9 -> 224.36 | J29: =IF(H29="过载","是","否") -> 否 | K29: 昌宁县田园镇达丙社区 | L29: 315
A30: 28 | B30: 10kV达丙街线422回路达丙社区上达丙2#台变 | C30: 10kV | D30: 0.1798 | E30: =D30*100 -> 17.98 | F30: =G30*100 -> 45.34 | G30: 0.4534 | H30: =_xlfn.IFS(D30<30%,"轻载",80%<D30<100%,"重载",D30>100%,"过载") -> 轻载 | I30: =(L30-L30*D30)*0.9 -> 184.55 | J30: =IF(H30="过载","是","否") -> 否 | K30: 昌宁县田园镇达丙社区 | L30: 250
A31: 29 | B31: 10kV达丙街线422回路达丙社区苏家湾1#台变 | C31: 10kV | D31: 0.108 | E31: =D31*100 -> 10.78 | F31: =G31*100 -> 24.19 | G31: 0.2419 | H31: =_xlfn.IFS(D31<30%,"轻载",80%<D31<100%,"重载",D31>100%,"过载") -> 轻载 | I31: =(L31-L31*D31)*0.9 -> 252.95 | J31: =IF(H31="过载","是","否") -> 否 | K31: 昌宁县田园镇达丙社区 | L31: 315
A32: 30 | B32: 10kV达丙街线422回路达丙社区苏家湾2#台变 | C32: 10kV | D32: 0.1983 | E32: =D32*100 -> 19.83 | F32: =G32*100 -> 49.17 | G32: 0.4917 | H32: =_xlfn.IFS(D32<30%,"轻载",80%<D32<100%,"重载",D32>100%,"过载") -> 轻载 | I32: =(L32-L32*D32)*0.9 -> 227.28 | J32: =IF(H32="过载","是","否") -> 否 | K32: 昌宁县田园镇达丙社区 | L32: 315
A33: 31 | B33: 10kV达丙街线422回路达丙社区小河边1#台变 | C33: 10kV | D33: 0.1042 | E33: =D33*100 -> 10.42 | F33: =G33*100 -> 47.62 | G33: 0.4762 | H33: =_xlfn.IFS(D33<30%,"轻载",80%<D33<100%,"重载",D33>100%,"过载") -> 轻载 | I33: =(L33-L33*D33)*0.9 -> 64.50 | J33: =IF(H33="过载","是","否") -> 否 | K33: 昌宁县田园镇达丙社区 | L33: 80
A34: 32 | B34: 10kV达丙街线422回路达丙社区小河边2#台变 | C34: 10kV | D34: 0.1969 | E34: =D34*100 -> 19.69 | F34: =G34*100 -> 69.84 | G34: 0.6984 | H34: =_xlfn.IFS(D34<30%,"轻载",80%<D34<100%,"重载",D34>100%,"过载") -> 轻载 | I34: =(L34-L34*D34)*0.9 -> 115.65 | J34: =IF(H34="过载","是","否") -> 否 | K34: 昌宁县田园镇达丙社区 | L34: 160
A35: 33 | B35: 10kV达丙街线422回路达丙社区小河边4#台变 | C35: 10kV | D35: 0.076 | E35: 7.61 | F35: 7.61 | G35: 0.0761 | H35: 轻载 | I35: =(L35-L35*D35)*0.9 -> 261.93 | J35: =IF(H35="过载","是","否") -> 否 | K35: 昌宁县田园镇达丙社区 | L35: 315
A36: 34 | B36: 10kV达丙街线422回路达丙社区兴达小区台变 | C36: 10kV | D36: 0.056 | E36: =D36*100 -> 5.60 | F36: =G36*100 -> 22.83 | G36: 0.2283 | H36: =_xlfn.IFS(D36<30%,"轻载",80%<D36<100%,"重载",D36>100%,"过载") -> 轻载 | I36: =(L36-L36*D36)*0.9 -> 212.39 | J36: =IF(H36="过载","是","否") -> 否 | K36: 昌宁县田园镇达丙社区 | L36: 250
A37: 35 | B37: 10kV达丙街线422回路达丙社区学堂1#台变 | C37: 10kV | D37: 0.278 | E37: =D37*100 -> 27.8 | F37: =G37*100 -> 75.43 | G37: 0.7543 | H37: 轻载 | I37: =(L37-L37*D37)*0.9 -> 64.98 | J37: =IF(H37="过载","是","否") -> 否 | K37: 昌宁县田园镇达丙社区 | L37: 100
A38: 36 | B38: 10kV达丙街线422回路达丙社区学堂2#台变 | C38: 10kV | D38: 0.123 | E38: =D38*100 -> 12.26 | F38: =G38*100 -> 32.95 | G38: 0.3295 | H38: =_xlfn.IFS(D38<30%,"轻载",80%<D38<100%,"重载",D38>100%,"过载") -> 轻载 | I38: =(L38-L38*D38)*0.9 -> 197.42 | J38: =IF(H38="过载","是","否") -> 否 | K38: 昌宁县田园镇达丙社区 | L38: 250
A39: 37 | B39: 10kV达丙街线422回路达丙社区姚寨1#台变 | C39: 10kV | D39: 0.2622 | E39: =D39*100 -> 26.22 | F39: =G39*100 -> 77.07 | G39: 0.7707 | H39: 轻载 | I39: =(L39-L39*D39)*0.9 -> 209.17 | J39: =IF(H39="过载","是","否") -> 否 | K39: 昌宁县田园镇达丙社区 | L39: 315
A40: 38 | B40: 10kV达丙街线422回路达丙社区姚寨2#台变 | C40: 10kV | D40: 0.1689 | E40: =D40*100 -> 16.89 | F40: =G40*100 -> 45.41 | G40: 0.4541 | H40: =_xlfn.IFS(D40<30%,"轻载",80%<D40<100%,"重载",D40>100%,"过载") -> 轻载 | I40: =(L40-L40*D40)*0.9 -> 149.60 | J40: =IF(H40="过载","是","否") -> 否 | K40: 昌宁县田园镇达丙社区 | L40: 200
A41: 39 | B41: 10kV达丙街线422回路达丙社区皂角树2#台变 | C41: 10kV | D41: 0.2393 | E41: =D41*100 -> 23.93 | F41: =G41*100 -> 48.59 | G41: 0.4859 | H41: 轻载 | I41: =(L41-L41*D41)*0.9 -> 171.16 | J41: =IF(H41="过载","是","否") -> 否 | K41: 昌宁县田园镇达丙社区 | L41: 250
A42: 40 | B42: 10kV达丙线422回路达丙社区佳兴东苑小区台变 | C42: 10kV | D42: 0 | E42: =D42*100 -> 0 | F42: =G42*100 -> 0 | G42: 0 | H42: =_xlfn.IFS(D42<30%,"轻载",80%<D42<100%,"重载",D42>100%,"过载") -> 轻载 | I42: =(L42-L42*D42)*0.9 -> 450.00 | J42: =IF(H42="过载","是","否") -> 否 | K42: 昌宁县田园镇达丙社区 | L42: 500
A43: 41 | B43: 10kV水泥厂线423回路达仁村白泥塘台变 | C43: 10kV | D43: 0.0777 | E43: =D43*100 -> 7.77 | F43: =G43*100 -> 40.31 | G43: 0.4031 | H43: =_xlfn.IFS(D43<30%,"轻载",80%<D43<100%,"重载",D43>100%,"过载") -> 轻载 | I43: =(L43-L43*D43)*0.9 -> 41.50 | J43: =IF(H43="过载","是","否") -> 否 | K43: 昌宁县田园镇达仁村 | L43: 50
A44: 42 | B44: 10kV水泥厂线423回路达仁村长岭岗台变 | C44: 10kV | D44: 0.145 | E44: =D44*100 -> 14.5 | F44: =G44*100 -> 55.76 | G44: 0.5576 | H44: =_xlfn.IFS(D44<30%,"轻载",80%<D44<100%,"重载",D44>100%,"过载") -> 轻载 | I44: =(L44-L44*D44)*0.9 -> 153.90 | J44: =IF(H44="过载","是","否") -> 否 | K44: 昌宁县田园镇达仁村 | L44: 200
A45: 43 | B45: 10kV水泥厂线423回路达仁村大浪地台变 | C45: 10kV | D45: 0.0825 | E45: =D45*100 -> 8.25 | F45: =G45*100 -> 49.78 | G45: 0.4978 | H45: =_xlfn.IFS(D45<30%,"轻载",80%<D45<100%,"重载",D45>100%,"过载") -> 轻载 | I45: =(L45-L45*D45)*0.9 -> 24.77 | J45: =IF(H45="过载","是","否") -> 否 | K45: 昌宁县田园镇达仁村 | L45: 30
A46: 44 | B46: 10kV水泥厂线423回路达仁村大平掌台变 | C46: 10kV | D46: 0.01150048 | E46: =D46*100 -> 1.15 | F46: =G46*100 -> 9.9 | G46: 0.099 | H46: =_xlfn.IFS(D46<30%,"轻载",80%<D46<100%,"重载",D46>100%,"过载") -> 轻载 | I46: =(L46-L46*D46)*0.9 -> 222.41 | J46: =IF(H46="过载","是","否") -> 否 | K46: 昌宁县田园镇达仁村 | L46: 250
A47: 45 | B47: 10kV水泥厂线423回路达仁村干塘台变 | C47: 10kV | D47: 0.014188544 | E47: =D47*100 -> 1.42 | F47: =G47*100 -> 34 | G47: 0.34 | H47: =_xlfn.IFS(D47<30%,"轻载",80%<D47<100%,"重载",D47>100%,"过载") -> 轻载 | I47: =(L47-L47*D47)*0.9 -> 221.81 | J47: =IF(H47="过载","是","否") -> 否 | K47: 昌宁县田园镇达仁村 | L47: 250
A48: 46 | B48: 10kV水泥厂线423回路达仁村后箐台变 | C48: 10kV | D48: 0.1279 | E48: =D48*100 -> 12.79 | F48: =G48*100 -> 52.57 | G48: 0.5257 | H48: =_xlfn.IFS(D48<30%,"轻载",80%<D48<100%,"重载",D48>100%,"过载") -> 轻载 | I48: =(L48-L48*D48)*0.9 -> 156.98 | J48: =IF(H48="过载","是","否") -> 否 | K48: 昌宁县田园镇达仁村 | L48: 200
A49: 47 | B49: 10kV水泥厂线423回路达仁村回头山台变 | C49: 10kV | D49: 0.1036 | E49: =D49*100 -> 10.36 | F49: =G49*100 -> 57.15 | G49: 0.5715 | H49: =_xlfn.IFS(D49<30%,"轻载",80%<D49<100%,"重载",D49>100%,"过载") -> 轻载 | I49: =(L49-L49*D49)*0.9 -> 24.20 | J49: =IF(H49="过载","是","否") -> 否 | K49: 昌宁县田园镇达仁村 | L49: 30
A50: 48 | B50: 10kV水泥厂线423回路达仁村甲山台变 | C50: 10kV | D50: 0.089 | E50: =D50*100 -> 8.9 | F50: =G50*100 -> 42.14 | G50: 0.4214 | H50: =_xlfn.IFS(D50<30%,"轻载",80%<D50<100%,"重载",D50>100%,"过载") -> 轻载 | I50: =(L50-L50*D50)*0.9 -> 65.59 | J50: =IF(H50="过载","是","否") -> 否 | K50: 昌宁县田园镇达仁村 | L50: 80
A51: 49 | B51: 10kV水泥厂线423回路达仁村金竹林台变 | C51: 10kV | D51: 0.0400092 | E51: =D51*100 -> 4.00 | F51: =G51*100 -> 14.03 | G51: 0.1403 | H51: =_xlfn.IFS(D51<30%,"轻载",80%<D51<100%,"重载",D51>100%,"过载") -> 轻载 | I51: =(L51-L51*D51)*0.9 -> 69.12 | J51: =IF(H51="过载","是","否") -> 否 | K51: 昌宁县田园镇达仁村 | L51: 80
A52: 50 | B52: 10kV水泥厂线423回路达仁村兰家台变 | C52: 10kV | D52: 0.0318688 | E52: =D52*100 -> 3.19 | F52: =G52*100 -> 17.36 | G52: 0.1736 | H52: =_xlfn.IFS(D52<30%,"轻载",80%<D52<100%,"重载",D52>100%,"过载") -> 轻载 | I52: =(L52-L52*D52)*0.9 -> 69.71 | J52: =IF(H52="过载","是","否") -> 否 | K52: 昌宁县田园镇达仁村 | L52: 80
A53: 51 | B53: 10kV水泥厂线423回路达仁村浪坝寨台变 | C53: 10kV | D53: 0.1153 | E53: =D53*100 -> 11.53 | F53: =G53*100 -> 61.81 | G53: 0.6181 | H53: =_xlfn.IFS(D53<30%,"轻载",80%<D53<100%,"重载",D53>100%,"过载") -> 轻载 | I53: =(L53-L53*D53)*0.9 -> 23.89 | J53: =IF(H53="过载","是","否") -> 否 | K53: 昌宁县田园镇达仁村 | L53: 30
A54: 52 | B54: 10kV水泥厂线423回路达仁村老学校台变 | C54: 10kV | D54: 0.0353 | E54: =D54*100 -> 3.53 | F54: =G54*100 -> 33.87 | G54: 0.3387 | H54: =_xlfn.IFS(D54<30%,"轻载",80%<D54<100%,"重载",D54>100%,"过载") -> 轻载 | I54: =(L54-L54*D54)*0.9 -> 108.53 | J54: =IF(H54="过载","是","否") -> 否 | K54: 昌宁县田园镇达仁村 | L54: 125
A55: 53 | B55: 10kV水泥厂线423回路达仁村马鹿山台变 | C55: 10kV | D55: 0.0837 | E55: =D55*100 -> 8.37 | F55: =G55*100 -> 38.56 | G55: 0.3856 | H55: =_xlfn.IFS(D55<30%,"轻载",80%<D55<100%,"重载",D55>100%,"过载") -> 轻载 | I55: =(L55-L55*D55)*0.9 -> 41.23 | J55: =IF(H55="过载","是","否") -> 否 | K55: 昌宁县田园镇达仁村 | L55: 50
A56: 54 | B56: 10kV水泥厂线423回路达仁村磨刀河2#台变 | C56: 10kV | D56: 0.1094 | E56: =D56*100 -> 10.94 | F56: =G56*100 -> 44 | G56: 0.44 | H56: =_xlfn.IFS(D56<30%,"轻载",80%<D56<100%,"重载",D56>100%,"过载") -> 轻载 | I56: =(L56-L56*D56)*0.9 -> 40.08 | J56: =IF(H56="过载","是","否") -> 否 | K56: 昌宁县漭水镇明德村 | L56: 50
A57: 55 | B57: 10kV水泥厂线423回路达仁村磨刀河台变 | C57: 10kV | D57: 0.1653 | E57: =D57*100 -> 16.53 | F57: =G57*100 -> 46.52 | G57: 0.4652 | H57: =_xlfn.IFS(D57<30%,"轻载",80%<D57<100%,"重载",D57>100%,"过载") -> 轻载 | I57: =(L57-L57*D57)*0.9 -> 22.54 | J57: =IF(H57="过载","是","否") -> 否 | K57: 昌宁县漭水镇明德村 | L57: 30
A58: 56 | B58: 10kV水泥厂线423回路达仁村坡脚台变 | C58: 10kV | D58: 0.0976848 | E58: =D58*100 -> 9.77 | F58: =G58*100 -> 28.59 | G58: 0.2859 | H58: =_xlfn.IFS(D58<30%,"轻载",80%<D58<100%,"重载",D58>100%,"过载") -> 轻载 | I58: =(L58-L58*D58)*0.9 -> 81.21 | J58: =IF(H58="过载","是","否") -> 否 | K58: 昌宁县田园镇达仁村 | L58: 100
A59: 57 | B59: 10kV水泥厂线423回路达仁村上寨台变 | C59: 10kV | D59: 0.0849 | E59: =D59*100 -> 8.49 | F59: =G59*100 -> 25.77 | G59: 0.2577 | H59: =_xlfn.IFS(D59<30%,"轻载",80%<D59<100%,"重载",D59>100%,"过载") -> 轻载 | I59: =(L59-L59*D59)*0.9 -> 82.36 | J59: =IF(H59="过载","是","否") -> 否 | K59: 昌宁县田园镇达仁村 | L59: 100
A60: 58 | B60: 10kV水泥厂线423回路达仁村石竹林台变 | C60: 10kV | D60: 0.023499776 | E60: =D60*100 -> 2.35 | F60: =G60*100 -> 24.42 | G60: 0.2442 | H60: =_xlfn.IFS(D60<30%,"轻载",80%<D60<100%,"重载",D60>100%,"过载") -> 轻载 | I60: =(L60-L60*D60)*0.9 -> 109.86 | J60: =IF(H60="过载","是","否") -> 否 | K60: 昌宁县田园镇达仁村 | L60: 125
A61: 59 | B61: 10kV水泥厂线423回路达仁村下寨台变 | C61: 10kV | D61: 0.098 | E61: =D61*100 -> 9.8 | F61: =G61*100 -> 31.93 | G61: 0.3193 | H61: =_xlfn.IFS(D61<30%,"轻载",80%<D61<100%,"重载",D61>100%,"过载") -> 轻载 | I61: =(L61-L61*D61)*0.9 -> 64.94 | J61: =IF(H61="过载","是","否") -> 否 | K61: 昌宁县田园镇达仁村 | L61: 80
A62: 60 | B62: 10kV水泥厂线423回路达仁村小河边台变 | C62: 10kV | D62: 0.04967376 | E62: =D62*100 -> 4.97 | F62: =G62*100 -> 33.58 | G62: 0.3358 | H62: =_xlfn.IFS(D62<30%,"轻载",80%<D62<100%,"重载",D62>100%,"过载") -> 轻载 | I62: =(L62-L62*D62)*0.9 -> 85.53 | J62: =IF(H62="过载","是","否") -> 否 | K62: 昌宁县田园镇达仁村 | L62: 100
A63: 61 | B63: 10kV水泥厂线423回路达仁村新厂河台变 | C63: 10kV | D63: 0.1452 | E63: =D63*100 -> 14.52 | F63: =G63*100 -> 53.62 | G63: 0.5362 | H63: =_xlfn.IFS(D63<30%,"轻载",80%<D63<100%,"重载",D63>100%,"过载") -> 轻载 | I63: =(L63-L63*D63)*0.9 -> 38.47 | J63: =IF(H63="过载","是","否") -> 否 | K63: 昌宁县田园镇达仁村 | L63: 50
A64: 62 | B64: 10kV水泥厂线423回路达仁村新德户台变 | C64: 10kV | D64: 0.0723976 | E64: =D64*100 -> 7.24 | F64: =G64*100 -> 27.67 | G64: 0.2767 | H64: =_xlfn.IFS(D64<30%,"轻载",80%<D64<100%,"重载",D64>100%,"过载") -> 轻载 | I64: =(L64-L64*D64)*0.9 -> 66.79 | J64: =IF(H64="过载","是","否") -> 否 | K64: 昌宁县田园镇达仁村 | L64: 80
A65: 63 | B65: 10kV水泥厂线423回路达仁村新侯台变 | C65: 10kV | D65: 0.1955 | E65: =D65*100 -> 19.55 | F65: =G65*100 -> 72.62 | G65: 0.7262 | H65: =_xlfn.IFS(D65<30%,"轻载",80%<D65<100%,"重载",D65>100%,"过载") -> 轻载 | I65: =(L65-L65*D65)*0.9 -> 36.20 | J65: =IF(H65="过载","是","否") -> 否 | K65: 昌宁县田园镇达仁村 | L65: 50
A66: 64 | B66: 10kV水泥厂线423回路达仁村樱桃树台变 | C66: 10kV | D66: 0.0769008 | E66: =D66*100 -> 7.69 | F66: =G66*100 -> 28.44 | G66: 0.2844 | H66: =_xlfn.IFS(D66<30%,"轻载",80%<D66<100%,"重载",D66>100%,"过载") -> 轻载 | I66: =(L66-L66*D66)*0.9 -> 66.46 | J66: =IF(H66="过载","是","否") -> 否 | K66: 昌宁县田园镇达仁村 | L66: 80
A67: 65 | B67: 10kV水泥厂线423回路达仁村杞木林台变 | C67: 10kV | D67: 0.09311232 | E67: =D67*100 -> 9.31 | F67: =G67*100 -> 24.52 | G67: 0.2452 | H67: =_xlfn.IFS(D67<30%,"轻载",80%<D67<100%,"重载",D67>100%,"过载") -> 轻载 | I67: =(L67-L67*D67)*0.9 -> 102.02 | J67: =IF(H67="过载","是","否") -> 否 | K67: 昌宁县田园镇达仁村 | L67: 125
A68: 66 | B68: 10kV水泥厂线423回路达仁村马鹿山2#台变 | C68: 10kV | D68: 0.1745 | E68: =D68*100 -> 17.45 | F68: =G68*100 -> 78.03 | G68: 0.7803 | H68: =_xlfn.IFS(D68<30%,"轻载",80%<D68<100%,"重载",D68>100%,"过载") -> 轻载 | I68: =(L68-L68*D68)*0.9 -> 148.59 | J68: =IF(H68="过载","是","否") -> 否 | K68: 昌宁县田园镇达仁村 | L68: 200
A69: 67 | B69: 10kV水泥厂线423回路新城社区石头寨台变 | C69: 10kV | D69: 0.0844 | E69: =D69*100 -> 8.44 | F69: =G69*100 -> 20.5 | G69: 0.205 | H69: =_xlfn.IFS(D69<30%,"轻载",80%<D69<100%,"重载",D69>100%,"过载") -> 轻载 | I69: =(L69-L69*D69)*0.9 -> 41.20 | J69: =IF(H69="过载","是","否") -> 否 | K69: 昌宁县田园镇新城社区 | L69: 50
A70: 68 | B70: 10kV河西线424回路新城社区德老本1#台变 | C70: 10kV | D70: 0.1774 | E70: =D70*100 -> 17.74 | F70: =G70*100 -> 38.82 | G70: 0.3882 | H70: =_xlfn.IFS(D70<30%,"轻载",80%<D70<100%,"重载",D70>100%,"过载") -> 轻载 | I70: =(L70-L70*D70)*0.9 -> 185.09 | J70: =IF(H70="过载","是","否") -> 否 | K70: 昌宁县田园镇新城社区 | L70: 250
A71: 69 | B71: 10kV河西线424回路新城社区德老本2#台变 | C71: 10kV | D71: 0.1737498413 | E71: =D71*100 -> 17.37 | F71: =G71*100 -> 17.37498413 | G71: 0.1737498413 | H71: =_xlfn.IFS(D71<30%,"轻载",80%<D71<100%,"重载",D71>100%,"过载") -> 轻载 | I71: =(L71-L71*D71)*0.9 -> 234.24 | J71: =IF(H71="过载","是","否") -> 否 | K71: 昌宁县田园镇新城社区 | L71: 315
A72: 70 | B72: 10kV河西线424回路新城社区德老本3#台变 | C72: 10kV | D72: 0.1416 | E72: =D72*100 -> 14.16 | F72: =G72*100 -> 39.57 | G72: 0.3957 | H72: =_xlfn.IFS(D72<30%,"轻载",80%<D72<100%,"重载",D72>100%,"过载") -> 轻载 | I72: =(L72-L72*D72)*0.9 -> 193.14 | J72: =IF(H72="过载","是","否") -> 否 | K72: 昌宁县田园镇新城社区 | L72: 250
A73: 71 | B73: 10kV河西线424回路新城社区河对门1#台变 | C73: 10kV | D73: 0.0534755 | E73: =D73*100 -> 5.35 | F73: =G73*100 -> 25.31 | G73: 0.2531 | H73: =_xlfn.IFS(D73<30%,"轻载",80%<D73<100%,"重载",D73>100%,"过载") -> 轻载 | I73: =(L73-L73*D73)*0.9 -> 136.30 | J73: =IF(H73="过载","是","否") -> 否 | K73: 昌宁县田园镇新城社区 | L73: 160
A74: 72 | B74: 10kV河西线424回路新城社区白坟台变 | C74: 10kV | D74: 0.1136 | E74: =D74*100 -> 11.36 | F74: =G74*100 -> 33.62 | G74: 0.3362 | H74: =_xlfn.IFS(D74<30%,"轻载",80%<D74<100%,"重载",D74>100%,"过载") -> 轻载 | I74: =(L74-L74*D74)*0.9 -> 159.55 | J74: =IF(H74="过载","是","否") -> 否 | K74: 昌宁县田园镇新城社区 | L74: 200
A75: 73 | B75: 10kV河西线424回路新城社区草场坝台变 | C75: 10kV | D75: 0.051876864 | E75: =D75*100 -> 5.19 | F75: =G75*100 -> 36.37 | G75: 0.3637 | H75: =_xlfn.IFS(D75<30%,"轻载",80%<D75<100%,"重载",D75>100%,"过载") -> 轻载 | I75: =(L75-L75*D75)*0.9 -> 213.33 | J75: =IF(H75="过载","是","否") -> 否 | K75: 昌宁县田园镇新城社区 | L75: 250
A76: 74 | B76: 10kV河西线424回路新城社区茶所台变 | C76: 10kV | D76: 0.06775584 | E76: =D76*100 -> 6.78 | F76: =G76*100 -> 27.61 | G76: 0.2761 | H76: =_xlfn.IFS(D76<30%,"轻载",80%<D76<100%,"重载",D76>100%,"过载") -> 轻载 | I76: =(L76-L76*D76)*0.9 -> 167.80 | J76: =IF(H76="过载","是","否") -> 否 | K76: 昌宁县田园镇新城社区 | L76: 200
A77: 75 | B77: 10kV河西线424回路新城社区河对门2#台变 | C77: 10kV | D77: 0.0822 | E77: =D77*100 -> 8.22 | F77: =G77*100 -> 33.28 | G77: 0.3328 | H77: =_xlfn.IFS(D77<30%,"轻载",80%<D77<100%,"重载",D77>100%,"过载") -> 轻载 | I77: =(L77-L77*D77)*0.9 -> 132.16 | J77: =IF(H77="过载","是","否") -> 否 | K77: 昌宁县田园镇新城社区 | L77: 160
A78: 76 | B78: 10kV河西线424回路新城社区街子台变 | C78: 10kV | D78: 0.1827 | E78: =D78*100 -> 18.27 | F78: =G78*100 -> 45.43 | G78: 0.4543 | H78: =_xlfn.IFS(D78<30%,"轻载",80%<D78<100%,"重载",D78>100%,"过载") -> 轻载 | I78: =(L78-L78*D78)*0.9 -> 231.70 | J78: =IF(H78="过载","是","否") -> 否 | K78: 昌宁县田园镇新城社区 | L78: 315
A79: 77 | B79: 10kV河西线424回路新城社区坡头台变 | C79: 10kV | D79: 0.2561 | E79: =D79*100 -> 25.61 | F79: =G79*100 -> 39.81 | G79: 0.3981 | H79: 轻载 | I79: =(L79-L79*D79)*0.9 -> 133.90 | J79: =IF(H79="过载","是","否") -> 否 | K79: 昌宁县田园镇新城社区 | L79: 200
A80: 78 | B80: 10kV河西线424回路新城社区坡头2#台变 | C80: 10kV | D80: 0.1239 | E80: =D80*100 -> 12.39 | F80: =G80*100 -> 48.06 | G80: 0.4806 | H80: =_xlfn.IFS(D80<30%,"轻载",80%<D80<100%,"重载",D80>100%,"过载") -> 轻载 | I80: =(L80-L80*D80)*0.9 -> 157.70 | J80: =IF(H80="过载","是","否") -> 否 | K80: 昌宁县田园镇新城社区 | L80: 200
A81: 79 | B81: 10kV河西线424回路新城社区上寨台变 | C81: 10kV | D81: 0.1225 | E81: =D81*100 -> 12.25 | F81: =G81*100 -> 43.04 | G81: 0.4304 | H81: =_xlfn.IFS(D81<30%,"轻载",80%<D81<100%,"重载",D81>100%,"过载") -> 轻载 | I81: =(L81-L81*D81)*0.9 -> 248.77 | J81: =IF(H81="过载","是","否") -> 否 | K81: 昌宁县田园镇新城社区 | L81: 315
A82: 80 | B82: 10kV河西线424回路新城社区石桥台变 | C82: 10kV | D82: 0.218 | E82: =D82*100 -> 21.8 | F82: =G82*100 -> 50.5 | G82: 0.505 | H82: 轻载 | I82: =(L82-L82*D82)*0.9 -> 175.95 | J82: =IF(H82="过载","是","否") -> 否 | K82: 昌宁县田园镇新城社区 | L82: 250
A83: 81 | B83: 10kV河西线424回路新城社区新路台变 | C83: 10kV | D83: 0.1225 | E83: =D83*100 -> 12.25 | F83: =G83*100 -> 39.36 | G83: 0.3936 | H83: =_xlfn.IFS(D83<30%,"轻载",80%<D83<100%,"重载",D83>100%,"过载") -> 轻载 | I83: =(L83-L83*D83)*0.9 -> 126.36 | J83: =IF(H83="过载","是","否") -> 否 | K83: 昌宁县田园镇新城社区 | L83: 160
A84: 82 | B84: 10kV河西线424回路新城社区丫口寨台变 | C84: 10kV | D84: 0.0401824 | E84: =D84*100 -> 4.02 | F84: =G84*100 -> 37.73 | G84: 0.3773 | H84: =_xlfn.IFS(D84<30%,"轻载",80%<D84<100%,"重载",D84>100%,"过载") -> 轻载 | I84: =(L84-L84*D84)*0.9 -> 43.19 | J84: =IF(H84="过载","是","否") -> 否 | K84: 昌宁县田园镇新城社区 | L84: 50
A85: 83 | B85: 10kV明德线425回路达丙社区光达小区台变 | C85: 10kV | D85: 0.2979 | E85: =D85*100 -> 29.79 | F85: =G85*100 -> 67.96 | G85: 0.6796 | H85: 轻载 | I85: =(L85-L85*D85)*0.9 -> 126.38 | J85: =IF(H85="过载","是","否") -> 否 | K85: 昌宁县田园镇达丙社区 | L85: 200
A86: 84 | B86: 10kV二中线426回路达丙社区新园社区台变 | C86: 10kV | D86: 0.06268190476 | E86: =D86*100 -> 6.27 | F86: =G86*100 -> 14.49 | G86: 0.1449 | H86: =_xlfn.IFS(D86<30%,"轻载",80%<D86<100%,"重载",D86>100%,"过载") -> 轻载 | I86: =(L86-L86*D86)*0.9 -> 265.73 | J86: =IF(H86="过载","是","否") -> 否 | K86: 昌宁县田园镇达丙社区 | L86: 315
A87: 85 | B87: 10kV龙泉线427回路九甲社区八甲台变 | C87: 10kV | D87: 0.3051 | E87: =D87*100 -> 30.51 | F87: =G87*100 -> 77.78 | G87: 0.7778 | H87: 经济运行 | I87: =(L87-L87*D87)*0.9 -> 50.03 | J87: =IF(H87="过载","是","否") -> 否 | K87: 昌宁县田园镇九甲社区 | L87: 80
A88: 86 | B88: 10kV龙泉线427回路九甲社区八甲鱼塘台变 | C88: 10kV | D88: 0.1824 | E88: =D88*100 -> 18.24 | F88: =G88*100 -> 47.61 | G88: 0.4761 | H88: =_xlfn.IFS(D88<30%,"轻载",80%<D88<100%,"重载",D88>100%,"过载") -> 轻载 | I88: =(L88-L88*D88)*0.9 -> 91.98 | J88: =IF(H88="过载","是","否") -> 否 | K88: 昌宁县田园镇九甲社区 | L88: 125
A89: 87 | B89: 10kV龙泉线427回路九甲社区白泥塘台变 | C89: 10kV | D89: 0.185 | E89: =D89*100 -> 18.5 | F89: =G89*100 -> 59.8 | G89: 0.598 | H89: =_xlfn.IFS(D89<30%,"轻载",80%<D89<100%,"重载",D89>100%,"过载") -> 轻载 | I89: =(L89-L89*D89)*0.9 -> 36.68 | J89: =IF(H89="过载","是","否") -> 否 | K89: 昌宁县田园镇九甲社区 | L89: 50
A90: 88 | B90: 10kV龙泉线427回路九甲社区扁尾台变 | C90: 10kV | D90: 0.0872 | E90: =D90*100 -> 8.72 | F90: =G90*100 -> 28.64 | G90: 0.2864 | H90: =_xlfn.IFS(D90<30%,"轻载",80%<D90<100%,"重载",D90>100%,"过载") -> 轻载 | I90: =(L90-L90*D90)*0.9 -> 82.15 | J90: =IF(H90="过载","是","否") -> 否 | K90: 昌宁县田园镇九甲社区 | L90: 100
A91: 89 | B91: 10kV龙泉线427回路九甲社区付家寨台变 | C91: 10kV | D91: 0.2197 | E91: =D91*100 -> 21.97 | F91: =G91*100 -> 55.59 | G91: 0.5559 | H91: 轻载 | I91: =(L91-L91*D91)*0.9 -> 112.36 | J91: =IF(H91="过载","是","否") -> 否 | K91: 昌宁县田园镇九甲社区 | L91: 160
A92: 90 | B92: 10kV龙泉线427回路九甲社区富乐台变 | C92: 10kV | D92: 0.03536579048 | E92: =D92*100 -> 3.54 | F92: =G92*100 -> 23.54 | G92: 0.2354 | H92: =_xlfn.IFS(D92<30%,"轻载",80%<D92<100%,"重载",D92>100%,"过载") -> 轻载 | I92: =(L92-L92*D92)*0.9 -> 138.91 | J92: =IF(H92="过载","是","否") -> 否 | K92: 昌宁县田园镇九甲社区 | L92: 160
A93: 91 | B93: 10kV龙泉线427回路九甲社区黑山箐1#台变 | C93: 10kV | D93: 0.0393 | E93: =D93*100 -> 3.93 | F93: =G93*100 -> 23.78 | G93: 0.2378 | H93: =_xlfn.IFS(D93<30%,"轻载",80%<D93<100%,"重载",D93>100%,"过载") -> 轻载 | I93: =(L93-L93*D93)*0.9 -> 138.34 | J93: =IF(H93="过载","是","否") -> 否 | K93: 昌宁县田园镇九甲社区 | L93: 160
A94: 92 | B94: 10kV龙泉线427回路九甲社区黑山箐2#台变 | C94: 10kV | D94: 0.1088 | E94: =D94*100 -> 10.88 | F94: =G94*100 -> 42.71 | G94: 0.4271 | H94: =_xlfn.IFS(D94<30%,"轻载",80%<D94<100%,"重载",D94>100%,"过载") -> 轻载 | I94: =(L94-L94*D94)*0.9 -> 64.17 | J94: =IF(H94="过载","是","否") -> 否 | K94: 昌宁县田园镇九甲社区 | L94: 80
A95: 93 | B95: 10kV龙泉线427回路九甲社区槐树台变 | C95: 10kV | D95: 0.2811 | E95: =D95*100 -> 28.11 | F95: =G95*100 -> 78.79 | G95: 0.7879 | H95: 轻载 | I95: =(L95-L95*D95)*0.9 -> 64.70 | J95: =IF(H95="过载","是","否") -> 否 | K95: 昌宁县田园镇九甲社区 | L95: 100
A96: 94 | B96: 10kV龙泉线427回路龙泉社区黄草坝台变 | C96: 10kV | D96: 0.1557 | E96: =D96*100 -> 15.57 | F96: =G96*100 -> 44.84 | G96: 0.4484 | H96: =_xlfn.IFS(D96<30%,"轻载",80%<D96<100%,"重载",D96>100%,"过载") -> 轻载 | I96: =(L96-L96*D96)*0.9 -> 94.98 | J96: =IF(H96="过载","是","否") -> 否 | K96: 昌宁县田园镇龙泉社区 | L96: 125
A97: 95 | B97: 10kV龙泉线427回路九甲社区金山台变 | C97: 10kV | D97: 0.03616416 | E97: =D97*100 -> 3.62 | F97: =G97*100 -> 22.38 | G97: 0.2238 | H97: =_xlfn.IFS(D97<30%,"轻载",80%<D97<100%,"重载",D97>100%,"过载") -> 轻载 | I97: =(L97-L97*D97)*0.9 -> 86.75 | J97: =IF(H97="过载","是","否") -> 否 | K97: 昌宁县田园镇九甲社区 | L97: 100
A98: 96 | B98: 10kV龙泉线427回路九甲社区中心村1#台变 | C98: 10kV | D98: 0.1083847111 | E98: =D98*100 -> 10.84 | F98: =G98*100 -> 36.52 | G98: 0.3652 | H98: =_xlfn.IFS(D98<30%,"轻载",80%<D98<100%,"重载",D98>100%,"过载") -> 轻载 | I98: =(L98-L98*D98)*0.9 -> 200.61 | J98: =IF(H98="过载","是","否") -> 否 | K98: 昌宁县田园镇九甲社区 | L98: 250
A99: 97 | B99: 10kV龙泉线427回路九甲社区富乐2#台变 | C99: 10kV | D99: 0.0794988 | E99: =D99*100 -> 7.95 | F99: =G99*100 -> 3.54 | G99: 0.0354 | H99: =_xlfn.IFS(D99<30%,"轻载",80%<D99<100%,"重载",D99>100%,"过载") -> 轻载 | I99: =(L99-L99*D99)*0.9 -> 165.69 | J99: =IF(H99="过载","是","否") -> 否 | K99: 昌宁县田园镇九甲社区 | L99: 200
A100: 98 | B100: 10kV龙泉线427回路九甲社区李赶香台变 | C100: 10kV | D100: 0.1041 | E100: =D100*100 -> 10.41 | F100: =G100*100 -> 38.69 | G100: 0.3869 | H100: =_xlfn.IFS(D100<30%,"轻载",80%<D100<100%,"重载",D100>100%,"过载") -> 轻载 | I100: =(L100-L100*D100)*0.9 -> 80.63 | J100: =IF(H100="过载","是","否") -> 否 | K100: 昌宁县田园镇九甲社区 | L100: 100
A101: 99 | B101: 10kV龙泉线427回路龙泉社区六甲台变 | C101: 10kV | D101: 0.1428 | E101: 15.06 | F101: 43.31 | G101: 0.3897 | H101: 轻载 | I101: =(L101-L101*M101)*0.9 -> 122.31 | J101: =IF(H101="过载","是","否") -> 否 | K101: 昌宁县田园镇龙泉社区 | L101: 160 | M101: =E101/100 -> 0.1506
A102: 100 | B102: 10kV龙泉线427回路龙泉社区龙上台变 | C102: 10kV | D102: 0.03668540952 | E102: =D102*100 -> 3.67 | F102: =G102*100 -> 12.72 | G102: 0.1272 | H102: =_xlfn.IFS(D102<30%,"轻载",80%<D102<100%,"重载",D102>100%,"过载") -> 轻载 | I102: =(L102-L102*D102)*0.9 -> 108.37 | J102: =IF(H102="过载","是","否") -> 否 | K102: 昌宁县田园镇龙泉社区 | L102: 125
A103: 101 | B103: 10kV龙泉线427回路龙泉社区龙下台变 | C103: 10kV | D103: 0.10475136 | E103: =D103*100 -> 10.48 | F103: =G103*100 -> 38.17 | G103: 0.3817 | H103: =_xlfn.IFS(D103<30%,"轻载",80%<D103<100%,"重载",D103>100%,"过载") -> 轻载 | I103: =(L103-L103*D103)*0.9 -> 100.72 | J103: =IF(H103="过载","是","否") -> 否 | K103: 昌宁县田园镇龙泉社区 | L103: 125
A104: 102 | B104: 10kV龙泉线427回路九甲社区马场台变 | C104: 10kV | D104: 0.2119 | E104: =D104*100 -> 21.19 | F104: =G104*100 -> 58.42 | G104: 0.5842 | H104: 轻载 | I104: =(L104-L104*D104)*0.9 -> 56.74 | J104: =IF(H104="过载","是","否") -> 否 | K104: 昌宁县田园镇九甲社区 | L104: 80
A105: 103 | B105: 10kV龙泉线427回路九甲社区马道子台变 | C105: 10kV | D105: 0.1126 | E105: =D105*100 -> 11.26 | F105: =G105*100 -> 34.6 | G105: 0.346 | H105: =_xlfn.IFS(D105<30%,"轻载",80%<D105<100%,"重载",D105>100%,"过载") -> 轻载 | I105: =(L105-L105*D105)*0.9 -> 63.89 | J105: =IF(H105="过载","是","否") -> 否 | K105: 昌宁县田园镇九甲社区 | L105: 80
A106: 104 | B106: 10kV龙泉线427回路龙泉社区牛屎沟台变 | C106: 10kV | D106: 0.2619 | E106: =D106*100 -> 26.19 | F106: =G106*100 -> 74.02 | G106: 0.7402 | H106: 轻载 | I106: =(L106-L106*D106)*0.9 -> 209.25 | J106: =IF(H106="过载","是","否") -> 否 | K106: 昌宁县田园镇龙泉社区 | L106: 315
A107: 105 | B107: 10kV龙泉线427回路龙泉社区沙沟台变 | C107: 10kV | D107: 0.2051 | E107: =D107*100 -> 20.51 | F107: =G107*100 -> 55.63 | G107: 0.5563 | H107: 轻载 | I107: =(L107-L107*D107)*0.9 -> 225.35 | J107: =IF(H107="过载","是","否") -> 否 | K107: 昌宁县田园镇龙泉社区 | L107: 315
A108: 106 | B108: 10kV龙泉线427回路龙泉社区上七甲1#台变 | C108: 10kV | D108: 0.1489 | E108: =D108*100 -> 14.89 | F108: =G108*100 -> 40.25 | G108: 0.4025 | H108: =_xlfn.IFS(D108<30%,"轻载",80%<D108<100%,"重载",D108>100%,"过载") -> 轻载 | I108: =(L108-L108*D108)*0.9 -> 241.29 | J108: =IF(H108="过载","是","否") -> 否 | K108: 昌宁县田园镇龙泉社区 | L108: 315
A109: 107 | B109: 10kV龙泉线427回路龙泉社区石庄1#台变 | C109: 10kV | D109: 0.2116 | E109: =D109*100 -> 21.16 | F109: =G109*100 -> 50.77 | G109: 0.5077 | H109: 轻载 | I109: =(L109-L109*D109)*0.9 -> 141.91 | J109: =IF(H109="过载","是","否") -> 否 | K109: 昌宁县田园镇龙泉社区 | L109: 200
A110: 108 | B110: 10kV龙泉线427回路龙泉社区石庄2#台变 | C110: 10kV | D110: 0.3044 | E110: =D110*100 -> 30.44 | F110: =G110*100 -> 70.32 | G110: 0.7032 | H110: 经济运行 | I110: =(L110-L110*D110)*0.9 -> 125.21 | J110: =IF(H110="过载","是","否") -> 否 | K110: 昌宁县田园镇龙泉社区 | L110: 200
A111: 109 | B111: 10kV龙泉线427回路九甲社区田坝心台变 | C111: 10kV | D111: 0.1036 | E111: =D111*100 -> 10.36 | F111: =G111*100 -> 62.29 | G111: 0.6229 | H111: =_xlfn.IFS(D111<30%,"轻载",80%<D111<100%,"重载",D111>100%,"过载") -> 轻载 | I111: =(L111-L111*D111)*0.9 -> 129.08 | J111: =IF(H111="过载","是","否") -> 否 | K111: 昌宁县田园镇九甲社区 | L111: 160
A112: 110 | B112: 10kV龙泉线427回路九甲社区碗厂台变 | C112: 10kV | D112: 0.2508 | E112: =D112*100 -> 25.08 | F112: =G112*100 -> 74.58 | G112: 0.7458 | H112: 轻载 | I112: =(L112-L112*D112)*0.9 -> 33.71 | J112: =IF(H112="过载","是","否") -> 否 | K112: 昌宁县田园镇九甲社区 | L112: 50
A113: 111 | B113: 10kV龙泉线427回路九甲社区下七甲台变 | C113: 10kV | D113: 0.178236546 | E113: =D113*100 -> 17.82 | F113: =G113*100 -> 34.23 | G113: 0.3423 | H113: =_xlfn.IFS(D113<30%,"轻载",80%<D113<100%,"重载",D113>100%,"过载") -> 轻载 | I113: =(L113-L113*D113)*0.9 -> 184.90 | J113: =IF(H113="过载","是","否") -> 否 | K113: 昌宁县田园镇九甲社区 | L113: 250
A114: 112 | B114: 10kV龙泉线427回路龙泉社区向阳寨台变 | C114: 10kV | D114: 0.1944 | E114: =D114*100 -> 19.44 | F114: =G114*100 -> 57.58 | G114: 0.5758 | H114: =_xlfn.IFS(D114<30%,"轻载",80%<D114<100%,"重载",D114>100%,"过载") -> 轻载 | I114: =(L114-L114*D114)*0.9 -> 228.39 | J114: =IF(H114="过载","是","否") -> 否 | K114: 昌宁县田园镇龙泉社区 | L114: 315
A115: 113 | B115: 10kV龙泉线427回路九甲社区兴顺达1#台变 | C115: 10kV | D115: 0.189 | E115: =D115*100 -> 18.9 | F115: =G115*100 -> 58.17 | G115: 0.5817 | H115: =_xlfn.IFS(D115<30%,"轻载",80%<D115<100%,"重载",D115>100%,"过载") -> 轻载 | I115: =(L115-L115*D115)*0.9 -> 116.78 | J115: =IF(H115="过载","是","否") -> 否 | K115: 昌宁县田园镇九甲社区 | L115: 160
A116: 114 | B116: 10kV龙泉线427回路九甲社区兴顺达2#台变 | C116: 10kV | D116: 0.0932 | E116: =D116*100 -> 9.32 | F116: =G116*100 -> 36.94 | G116: 0.3694 | H116: =_xlfn.IFS(D116<30%,"轻载",80%<D116<100%,"重载",D116>100%,"过载") -> 轻载 | I116: =(L116-L116*D116)*0.9 -> 130.58 | J116: =IF(H116="过载","是","否") -> 否 | K116: 昌宁县田园镇九甲社区 | L116: 160
A117: 115 | B117: 10kV龙泉线427回路龙泉社区竹园台变 | C117: 10kV | D117: 0.2781 | E117: =D117*100 -> 27.81 | F117: =G117*100 -> 59.38 | G117: 0.5938 | H117: 轻载 | I117: =(L117-L117*D117)*0.9 -> 204.66 | J117: =IF(H117="过载","是","否") -> 否 | K117: 昌宁县田园镇龙泉社区 | L117: 315
A118: 116 | B118: 10kV龙泉线427回路龙泉社区簸箕寨台变 | C118: 10kV | D118: 0.189 | E118: =D118*100 -> 18.9 | F118: =G118*100 -> 46.6 | G118: 0.466 | H118: =_xlfn.IFS(D118<30%,"轻载",80%<D118<100%,"重载",D118>100%,"过载") -> 轻载 | I118: =(L118-L118*D118)*0.9 -> 91.24 | J118: =IF(H118="过载","是","否") -> 否 | K118: 昌宁县田园镇龙泉社区 | L118: 125
A119: 117 | B119: 10kV锡矿线428回路达丙社区高坎子工业园区台变 | C119: 10kV | D119: 0.0267 | E119: =D119*100 -> 2.67 | F119: =G119*100 -> 26.31 | G119: 0.2631 | H119: =_xlfn.IFS(D119<30%,"轻载",80%<D119<100%,"重载",D119>100%,"过载") -> 轻载 | I119: =(L119-L119*D119)*0.9 -> 350.39 | J119: =IF(H119="过载","是","否") -> 否 | K119: 昌宁县田园镇达丙社区 | L119: 400
A120: 118 | B120: 10kV锡矿线428回路达丙社区三家村台变 | C120: 10kV | D120: 0.0625 | E120: =D120*100 -> 6.25 | F120: =G120*100 -> 61.33 | G120: 0.6133 | H120: =_xlfn.IFS(D120<30%,"轻载",80%<D120<100%,"重载",D120>100%,"过载") -> 轻载 | I120: =(L120-L120*D120)*0.9 -> 42.19 | J120: =IF(H120="过载","是","否") -> 否 | K120: 昌宁县田园镇达丙社区 | L120: 50
A121: 119 | B121: 10kV锡矿线428回路新城社区大麦地台变 | C121: 10kV | D121: 0.1152 | E121: =D121*100 -> 11.52 | F121: =G121*100 -> 48.84 | G121: 0.4884 | H121: =_xlfn.IFS(D121<30%,"轻载",80%<D121<100%,"重载",D121>100%,"过载") -> 轻载 | I121: =(L121-L121*D121)*0.9 -> 39.82 | J121: =IF(H121="过载","是","否") -> 否 | K121: 昌宁县田园镇新城社区 | L121: 50
A122: 120 | B122: 10kV锡矿线428回路新城社区瓦谷箐台变 | C122: 10kV | D122: 0.0578055 | E122: =D122*100 -> 5.78 | F122: =G122*100 -> 25.68 | G122: 0.2568 | H122: =_xlfn.IFS(D122<30%,"轻载",80%<D122<100%,"重载",D122>100%,"过载") -> 轻载 | I122: =(L122-L122*D122)*0.9 -> 135.68 | J122: =IF(H122="过载","是","否") -> 否 | K122: 昌宁县田园镇新城社区 | L122: 160
A123: 121 | B123: 10kV锡矿线428回路达丙社区中国铁塔股份公司保山市分公司 | C123: 10kV | D123: 0.2588762667 | E123: =D123*100 -> 25.89 | F123: =G123*100 -> 25.89 | G123: 0.2589 | H123: 轻载 | I123: =(L123-L123*D123)*0.9 -> 20.01 | J123: =IF(H123="过载","是","否") -> 否 | K123: 昌宁县田园镇湾岗村 | L123: 30
A124: 122 | B124: 10kV扁木线017回路扁木村茶所台变 | C124: 10kV | D124: 0.1292 | E124: =D124*100 -> 12.92 | F124: =G124*100 -> 35.49 | G124: 0.3549 | H124: =_xlfn.IFS(D124<30%,"轻载",80%<D124<100%,"重载",D124>100%,"过载") -> 轻载 | I124: =(L124-L124*D124)*0.9 -> 62.70 | J124: =IF(H124="过载","是","否") -> 否 | K124: 昌宁县鸡飞镇扁木村 | L124: 80
A125: 123 | B125: 10kV扁木线017回路扁木村村公所台变 | C125: 10kV | D125: 0.1713 | E125: =D125*100 -> 17.13 | F125: =G125*100 -> 69.25 | G125: 0.6925 | H125: =_xlfn.IFS(D125<30%,"轻载",80%<D125<100%,"重载",D125>100%,"过载") -> 轻载 | I125: =(L125-L125*D125)*0.9 -> 59.67 | J125: =IF(H125="过载","是","否") -> 否 | K125: 昌宁县鸡飞镇扁木村 | L125: 80
A126: 124 | B126: 10kV扁木线017回路扁木村大田2#台变 | C126: 10kV | D126: 0.1053 | E126: =D126*100 -> 10.53 | F126: =G126*100 -> 47.89 | G126: 0.4789 | H126: =_xlfn.IFS(D126<30%,"轻载",80%<D126<100%,"重载",D126>100%,"过载") -> 轻载 | I126: =(L126-L126*D126)*0.9 -> 40.26 | J126: =IF(H126="过载","是","否") -> 否 | K126: 昌宁县鸡飞镇扁木村 | L126: 50
A127: 125 | B127: 10kV扁木线017回路扁木村李家寨台变 | C127: 10kV | D127: 0.069 | E127: =D127*100 -> 6.9 | F127: =G127*100 -> 36.26 | G127: 0.3626 | H127: =_xlfn.IFS(D127<30%,"轻载",80%<D127<100%,"重载",D127>100%,"过载") -> 轻载 | I127: =(L127-L127*D127)*0.9 -> 83.79 | J127: =IF(H127="过载","是","否") -> 否 | K127: 昌宁县鸡飞镇扁木村 | L127: 100
A128: 126 | B128: 10kV扁木线017回路扁木村苗家山台变 | C128: 10kV | D128: 0.041568 | E128: =D128*100 -> 4.16 | F128: =G128*100 -> 16.22 | G128: 0.1622 | H128: =_xlfn.IFS(D128<30%,"轻载",80%<D128<100%,"重载",D128>100%,"过载") -> 轻载 | I128: =(L128-L128*D128)*0.9 -> 86.26 | J128: =IF(H128="过载","是","否") -> 否 | K128: 昌宁县鸡飞镇扁木村 | L128: 100
A129: 127 | B129: 10kV扁木线017回路二母龙村上寨台变 | C129: 10kV | D129: 0.09093 | E129: =D129*100 -> 9.093 | F129: =G129*100 -> 16.85 | G129: 0.1685 | H129: =_xlfn.IFS(D129<30%,"轻载",80%<D129<100%,"重载",D129>100%,"过载") -> 轻载 | I129: =(L129-L129*D129)*0.9 -> 130.91 | J129: =IF(H129="过载","是","否") -> 否 | K129: 昌宁县鸡飞镇二母龙村 | L129: 160
A130: 128 | B130: 10kV扁木线017回路二母龙村下寨台变 | C130: 10kV | D130: 0.036805 | E130: =D130*100 -> 3.68 | F130: =G130*100 -> 20.14 | G130: 0.2014 | H130: =_xlfn.IFS(D130<30%,"轻载",80%<D130<100%,"重载",D130>100%,"过载") -> 轻载 | I130: =(L130-L130*D130)*0.9 -> 138.70 | J130: =IF(H130="过载","是","否") -> 否 | K130: 昌宁县鸡飞镇二母龙村 | L130: 160
A131: 129 | B131: 10kV扁木线017回路扁木村厍家寨台变 | C131: 10kV | D131: 0.1535 | E131: =D131*100 -> 15.35 | F131: =G131*100 -> 68.89 | G131: 0.6889 | H131: =_xlfn.IFS(D131<30%,"轻载",80%<D131<100%,"重载",D131>100%,"过载") -> 轻载 | I131: =(L131-L131*D131)*0.9 -> 38.09 | J131: =IF(H131="过载","是","否") -> 否 | K131: 昌宁县鸡飞镇扁木村 | L131: 50
A132: 130 | B132: 10kV扁木线017回路扁木村大田台变 | C132: 10kV | D132: 0.2553 | E132: =D132*100 -> 25.53 | F132: =G132*100 -> 80.64 | G132: 0.8064 | H132: 轻载 | I132: =(L132-L132*D132)*0.9 -> 67.02 | J132: =IF(H132="过载","是","否") -> 否 | K132: 昌宁县鸡飞镇扁木村 | L132: 100
A133: 131 | B133: 10kV扁木线017回路右文社区鸡蛋山台变 | C133: 10kV | D133: 0.1908 | E133: =D133*100 -> 19.08 | F133: =G133*100 -> 75.73 | G133: 0.7573 | H133: =_xlfn.IFS(D133<30%,"轻载",80%<D133<100%,"重载",D133>100%,"过载") -> 轻载 | I133: =(L133-L133*D133)*0.9 -> 21.85 | J133: =IF(H133="过载","是","否") -> 否 | K133: 昌宁县田园镇右文社区 | L133: 30
A134: 132 | B134: 10kV扁木线017回路扁木村盘石台变 | C134: 10kV | D134: 0.0677645 | E134: =D134*100 -> 6.78 | F134: =G134*100 -> 28.54 | G134: 0.2854 | H134: =_xlfn.IFS(D134<30%,"轻载",80%<D134<100%,"重载",D134>100%,"过载") -> 轻载 | I134: =(L134-L134*D134)*0.9 -> 134.24 | J134: =IF(H134="过载","是","否") -> 否 | K134: 昌宁县鸡飞镇扁木村 | L134: 160
A135: 133 | B135: 10kV扁木线017回路扁木村芹菜塘1#台变 | C135: 10kV | D135: 0.05050512 | E135: =D135*100 -> 5.05 | F135: =G135*100 -> 31.42 | G135: 0.3142 | H135: =_xlfn.IFS(D135<30%,"轻载",80%<D135<100%,"重载",D135>100%,"过载") -> 轻载 | I135: =(L135-L135*D135)*0.9 -> 85.45 | J135: =IF(H135="过载","是","否") -> 否 | K135: 昌宁县鸡飞镇扁木村 | L135: 100
A136: 134 | B136: 10kV扁木线017回路扁木村芹菜塘2#台变 | C136: 10kV | D136: 0.04136016 | E136: =D136*100 -> 4.14 | F136: =G136*100 -> 31.06 | G136: 0.3106 | H136: =_xlfn.IFS(D136<30%,"轻载",80%<D136<100%,"重载",D136>100%,"过载") -> 轻载 | I136: =(L136-L136*D136)*0.9 -> 86.28 | J136: =IF(H136="过载","是","否") -> 否 | K136: 昌宁县鸡飞镇扁木村 | L136: 100
A137: 135 | B137: 10kV扁木线017回路二母龙村三岔河台变 | C137: 10kV | D137: 0.0422175 | E137: =D137*100 -> 4.22 | F137: =G137*100 -> 28.33 | G137: 0.2833 | H137: =_xlfn.IFS(D137<30%,"轻载",80%<D137<100%,"重载",D137>100%,"过载") -> 轻载 | I137: =(L137-L137*D137)*0.9 -> 86.20 | J137: =IF(H137="过载","是","否") -> 否 | K137: 昌宁县鸡飞镇二母龙村 | L137: 100
A138: 136 | B138: 10kV扁木线017回路扁木村王家寨台变 | C138: 10kV | D138: 0.1511 | E138: =D138*100 -> 15.11 | F138: =G138*100 -> 53.53 | G138: 0.5353 | H138: =_xlfn.IFS(D138<30%,"轻载",80%<D138<100%,"重载",D138>100%,"过载") -> 轻载 | I138: =(L138-L138*D138)*0.9 -> 76.40 | J138: =IF(H138="过载","是","否") -> 否 | K138: 昌宁县鸡飞镇邑等村 | L138: 100
A139: 137 | B139: 10kV扁木线017回路扁木村卫家寨台变 | C139: 10kV | D139: 0.0270192 | E139: =D139*100 -> 2.70 | F139: =G139*100 -> 24.36 | G139: 0.2436 | H139: =_xlfn.IFS(D139<30%,"轻载",80%<D139<100%,"重载",D139>100%,"过载") -> 轻载 | I139: =(L139-L139*D139)*0.9 -> 70.05 | J139: =IF(H139="过载","是","否") -> 否 | K139: 昌宁县鸡飞镇扁木村 | L139: 80
A140: 138 | B140: 10kV扁木线017回路扁木村小竹箐台变 | C140: 10kV | D140: 0.0383205 | E140: 6.9 | F140: 24.53 | G140: 0.2114 | H140: 轻载 | I140: =(L140-L140*M140)*0.9 -> 134.06 | J140: =IF(H140="过载","是","否") -> 否 | K140: 昌宁县鸡飞镇二母龙村 | L140: 160 | M140: =E140/100 -> 0.069
A141: 139 | B141: 10kV扁木线017回路扁木村外寨台变 | C141: 10kV | D141: 0.029444 | E141: =D141*100 -> 2.94 | F141: =G141*100 -> 26.75 | G141: 0.2675 | H141: =_xlfn.IFS(D141<30%,"轻载",80%<D141<100%,"重载",D141>100%,"过载") -> 轻载 | I141: =(L141-L141*D141)*0.9 -> 139.76 | J141: =IF(H141="过载","是","否") -> 否 | K141: 昌宁县鸡飞镇扁木村 | L141: 160
A142: 140 | B142: 10kV右文线018回路右文社区碧云寺台变 | C142: 10kV | D142: 0.0288378 | E142: =D142*100 -> 2.88 | F142: =G142*100 -> 24.24 | G142: 0.2424 | H142: =_xlfn.IFS(D142<30%,"轻载",80%<D142<100%,"重载",D142>100%,"过载") -> 轻载 | I142: =(L142-L142*D142)*0.9 -> 139.85 | J142: =IF(H142="过载","是","否") -> 否 | K142: 昌宁县田园镇右文社区 | L142: 160
A143: 141 | B143: 10kV右文线018回路右文社区花石头1#台变 | C143: 10kV | D143: 0.0126 | E143: =D143*100 -> 1.26 | F143: =G143*100 -> 10.04 | G143: 0.1004 | H143: =_xlfn.IFS(D143<30%,"轻载",80%<D143<100%,"重载",D143>100%,"过载") -> 轻载 | I143: =(L143-L143*D143)*0.9 -> 177.73 | J143: =IF(H143="过载","是","否") -> 否 | K143: 昌宁县田园镇右文社区 | L143: 200
A144: 142 | B144: 10kV右文线018回路右文社区花石头2#台变 | C144: 10kV | D144: 0.0443392 | E144: =D144*100 -> 4.43 | F144: =G144*100 -> 34.6 | G144: 0.346 | H144: =_xlfn.IFS(D144<30%,"轻载",80%<D144<100%,"重载",D144>100%,"过载") -> 轻载 | I144: =(L144-L144*D144)*0.9 -> 68.81 | J144: =IF(H144="过载","是","否") -> 否 | K144: 昌宁县田园镇右文社区 | L144: 80
A145: 143 | B145: 10kV右文线018回路右文社区浪坝寨台变 | C145: 10kV | D145: 0.105745473 | E145: =D145*100 -> 10.57 | F145: =G145*100 -> 37.99 | G145: 0.3799 | H145: =_xlfn.IFS(D145<30%,"轻载",80%<D145<100%,"重载",D145>100%,"过载") -> 轻载 | I145: =(L145-L145*D145)*0.9 -> 201.21 | J145: =IF(H145="过载","是","否") -> 否 | K145: 昌宁县田园镇右文社区 | L145: 250
A146: 144 | B146: 10kV右文线018回路右文社区城南安置小区台变 | C146: 10kV | D146: 0.04728634921 | E146: =D146*100 -> 4.73 | F146: =G146*100 -> 9.54 | G146: 0.0954 | H146: =_xlfn.IFS(D146<30%,"轻载",80%<D146<100%,"重载",D146>100%,"过载") -> 轻载 | I146: =(L146-L146*D146)*0.9 -> 540.19 | J146: =IF(H146="过载","是","否") -> 否 | K146: 昌宁县田园镇右文社区 | L146: 630
A147: 145 | B147: 10kV右文线018回路右文社区丫口寨1#台变 | C147: 10kV | D147: 0.0561168 | E147: 7.01 | F147: 32.27 | G147: 0.2898 | H147: 轻载 | I147: =(L147-L147*M147)*0.9 -> 167.38 | J147: =IF(H147="过载","是","否") -> 否 | K147: 昌宁县田园镇右文社区 | L147: 200 | M147: =E147/100 -> 0.0701
A148: 146 | B148: 10kV右文线018回路右文社区丫口寨2#台变 | C148: 10kV | D148: 0.1726 | E148: =D148*100 -> 17.26 | F148: =G148*100 -> 58.62 | G148: 0.5862 | H148: =_xlfn.IFS(D148<30%,"轻载",80%<D148<100%,"重载",D148>100%,"过载") -> 轻载 | I148: =(L148-L148*D148)*0.9 -> 74.47 | J148: =IF(H148="过载","是","否") -> 否 | K148: 昌宁县田园镇右文社区 | L148: 100
A149: 147 | B149: 10kV右文线018回路右文社区大理寨1#台变 | C149: 10kV | D149: 0.3479 | E149: =D149*100 -> 34.79 | F149: =G149*100 -> 103.02 | G149: 1.0302 | H149: 经济运行 | I149: =(L149-L149*D149)*0.9 -> 46.95 | J149: =IF(H149="过载","是","否") -> 否 | K149: 昌宁县田园镇右文社区 | L149: 80
A150: 148 | B150: 10kV右文线018回路右文社区大理寨2#台变 | C150: 10kV | D150: 0.13488816 | E150: =D150*100 -> 13.49 | F150: =G150*100 -> 17.46 | G150: 0.1746 | H150: =_xlfn.IFS(D150<30%,"轻载",80%<D150<100%,"重载",D150>100%,"过载") -> 轻载 | I150: =(L150-L150*D150)*0.9 -> 245.26 | J150: =IF(H150="过载","是","否") -> 否 | K150: 昌宁县田园镇右文社区 | L150: 315
A151: 149 | B151: 10kV右文线018回路右文社区大寨台变 | C151: 10kV | D151: 0.02833552 | E151: =D151*100 -> 2.83 | F151: =G151*100 -> 3.43 | G151: 0.0343 | H151: =_xlfn.IFS(D151<30%,"轻载",80%<D151<100%,"重载",D151>100%,"过载") -> 轻载 | I151: =(L151-L151*D151)*0.9 -> 174.90 | J151: =IF(H151="过载","是","否") -> 否 | K151: 昌宁县田园镇右文社区 | L151: 200
A152: 150 | B152: 10kV右文线018回路右文社区上三甲台变 | C152: 10kV | D152: 0.093 | E152: =D152*100 -> 9.3 | F152: =G152*100 -> 44.9 | G152: 0.449 | H152: =_xlfn.IFS(D152<30%,"轻载",80%<D152<100%,"重载",D152>100%,"过载") -> 轻载 | I152: =(L152-L152*D152)*0.9 -> 204.08 | J152: =IF(H152="过载","是","否") -> 否 | K152: 昌宁县田园镇右文社区 | L152: 250
A153: 151 | B153: 10kV右文线018回路右文社区下三甲台变 | C153: 10kV | D153: 0.1938520381 | E153: =D153*100 -> 19.39 | F153: =G153*100 -> 36.08 | G153: 0.3608 | H153: =_xlfn.IFS(D153<30%,"轻载",80%<D153<100%,"重载",D153>100%,"过载") -> 轻载 | I153: =(L153-L153*D153)*0.9 -> 228.54 | J153: =IF(H153="过载","是","否") -> 否 | K153: 昌宁县田园镇右文社区 | L153: 315
A154: 152 | B154: 10kV右文线018回路右文社区营盘山1#台变 | C154: 10kV | D154: 0.1397724 | E154: =D154*100 -> 13.98 | F154: =G154*100 -> 16.16 | G154: 0.1616 | H154: =_xlfn.IFS(D154<30%,"轻载",80%<D154<100%,"重载",D154>100%,"过载") -> 轻载 | I154: =(L154-L154*D154)*0.9 -> 123.87 | J154: =IF(H154="过载","是","否") -> 否 | K154: 昌宁县田园镇右文社区 | L154: 160
A155: 153 | B155: 10kV右文线018回路右文社区营盘山2#台变 | C155: 10kV | D155: 0.062352 | E155: =D155*100 -> 6.24 | F155: =G155*100 -> 27.2 | G155: 0.272 | H155: =_xlfn.IFS(D155<30%,"轻载",80%<D155<100%,"重载",D155>100%,"过载") -> 轻载 | I155: =(L155-L155*D155)*0.9 -> 105.49 | J155: =IF(H155="过载","是","否") -> 否 | K155: 昌宁县田园镇右文社区 | L155: 125
A156: 154 | B156: 10kV右文线018回路右文社区中三甲台变 | C156: 10kV | D156: 0.07741765079 | E156: =D156*100 -> 7.74 | F156: =G156*100 -> 37.72 | G156: 0.3772 | H156: =_xlfn.IFS(D156<30%,"轻载",80%<D156<100%,"重载",D156>100%,"过载") -> 轻载 | I156: =(L156-L156*D156)*0.9 -> 261.55 | J156: =IF(H156="过载","是","否") -> 否 | K156: 昌宁县田园镇右文社区 | L156: 315
A157: 155 | B157: 10kV九甲线019回路九甲社区独木楼台变 | C157: 10kV | D157: 0.1302464 | E157: =D157*100 -> 13.02 | F157: =G157*100 -> 24.3 | G157: 0.243 | H157: =_xlfn.IFS(D157<30%,"轻载",80%<D157<100%,"重载",D157>100%,"过载") -> 轻载 | I157: =(L157-L157*D157)*0.9 -> 23.48 | J157: =IF(H157="过载","是","否") -> 否 | K157: 昌宁县温泉镇大九甲村 | L157: 30
A158: 156 | B158: 10kV九甲线019回路九甲社区岩子头台变 | C158: 10kV | D158: 0.2002 | E158: =D158*100 -> 20.02 | F158: =G158*100 -> 66.13 | G158: 0.6613 | H158: 轻载 | I158: =(L158-L158*D158)*0.9 -> 35.99 | J158: =IF(H158="过载","是","否") -> 否 | K158: 昌宁县温泉镇大九甲村 | L158: 50
A159: 157 | B159: 10kV宝达线022回路宝丰社区宝达路1#台变 | C159: 10kV | D159: 0.169 | E159: =D159*100 -> 16.9 | F159: =G159*100 -> 30.02 | G159: 0.3002 | H159: =_xlfn.IFS(D159<30%,"轻载",80%<D159<100%,"重载",D159>100%,"过载") -> 轻载 | I159: =(L159-L159*D159)*0.9 -> 235.59 | J159: =IF(H159="过载","是","否") -> 否 | K159: 昌宁县田园镇宝丰社区 | L159: 315
A160: 158 | B160: 10kV宝达线022回路宝丰社区宝达路2#台变 | C160: 10kV | D160: 0.1478 | E160: =D160*100 -> 14.78 | F160: =G160*100 -> 33.33 | G160: 0.3333 | H160: =_xlfn.IFS(D160<30%,"轻载",80%<D160<100%,"重载",D160>100%,"过载") -> 轻载 | I160: =(L160-L160*D160)*0.9 -> 306.79 | J160: =IF(H160="过载","是","否") -> 否 | K160: 昌宁县田园镇宝丰社区 | L160: 400
A161: 159 | B161: 10kV宝达线022回路龙井社区隆祥花园1#台变 | C161: 10kV | D161: 0.09369295238 | E161: =D161*100 -> 9.37 | F161: =G161*100 -> 17.51 | G161: 0.1751 | H161: =_xlfn.IFS(D161<30%,"轻载",80%<D161<100%,"重载",D161>100%,"过载") -> 轻载 | I161: =(L161-L161*D161)*0.9 -> 513.88 | J161: =IF(H161="过载","是","否") -> 否 | K161: 昌宁县田园镇龙井社区 | L161: 630
A162: 160 | B162: 10kV宝达线022回路龙井社区隆祥花园2#台变 | C162: 10kV | D162: 0.04750628571 | E162: =D162*100 -> 4.75 | F162: =G162*100 -> 13.99 | G162: 0.1399 | H162: =_xlfn.IFS(D162<30%,"轻载",80%<D162<100%,"重载",D162>100%,"过载") -> 轻载 | I162: =(L162-L162*D162)*0.9 -> 540.06 | J162: =IF(H162="过载","是","否") -> 否 | K162: 昌宁县田园镇龙井社区 | L162: 630
A163: 161 | B163: 10kV宝达线022回路龙井社区隆祥花园3#台变 | C163: 10kV | D163: 0.0241614 | E163: =D163*100 -> 2.42 | F163: =G163*100 -> 5.81 | G163: 0.0581 | H163: =_xlfn.IFS(D163<30%,"轻载",80%<D163<100%,"重载",D163>100%,"过载") -> 轻载 | I163: =(L163-L163*D163)*0.9 -> 702.60 | J163: =IF(H163="过载","是","否") -> 否 | K163: 昌宁县田园镇龙井社区 | L163: 800
A164: 162 | B164: 10kV宝达线022回路龙井社区隆祥花园4#台变 | C164: 10kV | D164: 0.0410484 | E164: =D164*100 -> 4.10 | F164: =G164*100 -> 12.61 | G164: 0.1261 | H164: =_xlfn.IFS(D164<30%,"轻载",80%<D164<100%,"重载",D164>100%,"过载") -> 轻载 | I164: =(L164-L164*D164)*0.9 -> 690.45 | J164: =IF(H164="过载","是","否") -> 否 | K164: 昌宁县田园镇龙井社区 | L164: 800
A165: 163 | B165: 10kV宝达线022回路达丙社区福慧华庭1#台变 | C165: 10kV | D165: 0.037671 | E165: =D165*100 -> 3.77 | F165: =G165*100 -> 7.75 | G165: 0.0775 | H165: =_xlfn.IFS(D165<30%,"轻载",80%<D165<100%,"重载",D165>100%,"过载") -> 轻载 | I165: =(L165-L165*D165)*0.9 -> 692.88 | J165: =IF(H165="过载","是","否") -> 否 | K165: 昌宁县田园镇达丙社区 | L165: 800
A166: 164 | B166: 10kV宝达线022回路达丙社区福慧华庭2#台变 | C166: 10kV | D166: 0.0444258 | E166: =D166*100 -> 4.44 | F166: =G166*100 -> 11.95 | G166: 0.1195 | H166: =_xlfn.IFS(D166<30%,"轻载",80%<D166<100%,"重载",D166>100%,"过载") -> 轻载 | I166: =(L166-L166*D166)*0.9 -> 688.01 | J166: =IF(H166="过载","是","否") -> 否 | K166: 昌宁县田园镇达丙社区 | L166: 800
A167: 165 | B167: 10kV宝达线022回路达丙社区福慧华庭3#台变 | C167: 10kV | D167: 0.0514404 | E167: =D167*100 -> 5.14 | F167: =G167*100 -> 13.52 | G167: 0.1352 | H167: =_xlfn.IFS(D167<30%,"轻载",80%<D167<100%,"重载",D167>100%,"过载") -> 轻载 | I167: =(L167-L167*D167)*0.9 -> 682.96 | J167: =IF(H167="过载","是","否") -> 否 | K167: 昌宁县田园镇达丙社区 | L167: 800
A168: 166 | B168: 10kV宝达线022回路达丙社区福慧路1#台变 | C168: 10kV | D168: 0.03796544 | E168: =D168*100 -> 3.80 | F168: =G168*100 -> 10.96 | G168: 0.1096 | H168: =_xlfn.IFS(D168<30%,"轻载",80%<D168<100%,"重载",D168>100%,"过载") -> 轻载 | I168: =(L168-L168*D168)*0.9 -> 173.17 | J168: =IF(H168="过载","是","否") -> 否 | K168: 昌宁县田园镇达丙社区 | L168: 200
A169: 167 | B169: 10kV宝达线022回路达丙社区福慧路2#台变 | C169: 10kV | D169: 0.1580023873 | E169: =D169*100 -> 15.80 | F169: =G169*100 -> 22.59 | G169: 0.2259 | H169: =_xlfn.IFS(D169<30%,"轻载",80%<D169<100%,"重载",D169>100%,"过载") -> 轻载 | I169: =(L169-L169*D169)*0.9 -> 238.71 | J169: =IF(H169="过载","是","否") -> 否 | K169: 昌宁县田园镇达丙社区 | L169: 315
A170: 168 | B170: 10kV宝达线022回路达丙社区福慧路4#台变 | C170: 10kV | D170: 0.092668928 | E170: =D170*100 -> 9.27 | F170: =G170*100 -> 27.08 | G170: 0.2708 | H170: =_xlfn.IFS(D170<30%,"轻载",80%<D170<100%,"重载",D170>100%,"过载") -> 轻载 | I170: =(L170-L170*D170)*0.9 -> 408.30 | J170: =IF(H170="过载","是","否") -> 否 | K170: 昌宁县田园镇达丙社区 | L170: 500
A171: 169 | B171: 10kV宝达线022回路达丙社区福慧路6#台变 | C171: 10kV | D171: 0.1554 | E171: =D171*100 -> 15.54 | F171: =G171*100 -> 43.18 | G171: 0.4318 | H171: =_xlfn.IFS(D171<30%,"轻载",80%<D171<100%,"重载",D171>100%,"过载") -> 轻载 | I171: =(L171-L171*D171)*0.9 -> 152.03 | J171: =IF(H171="过载","是","否") -> 否 | K171: 昌宁县田园镇达丙社区 | L171: 200
A172: 170 | B172: 10kV宝达线022回路达丙社区福慧路3#台变 | C172: 10kV | D172: 0.153295746 | E172: =D172*100 -> 15.33 | F172: =G172*100 -> 19.32 | G172: 0.1932 | H172: =_xlfn.IFS(D172<30%,"轻载",80%<D172<100%,"重载",D172>100%,"过载") -> 轻载 | I172: =(L172-L172*D172)*0.9 -> 240.04 | J172: =IF(H172="过载","是","否") -> 否 | K172: 昌宁县田园镇达丙社区 | L172: 315
A173: 171 | B173: 10kV宝达线022回路达丙社区福慧路5#台变 | C173: 10kV | D173: 0.0573 | E173: =D173*100 -> 5.73 | F173: =G173*100 -> 20.73 | G173: 0.2073 | H173: =_xlfn.IFS(D173<30%,"轻载",80%<D173<100%,"重载",D173>100%,"过载") -> 轻载 | I173: =(L173-L173*D173)*0.9 -> 678.74 | J173: =IF(H173="过载","是","否") -> 否 | K173: 昌宁县田园镇达丙社区 | L173: 800
A174: 172 | B174: 10kV宝达线022回路龙井社区隆祥花园二期1#台变 | C174: 10kV | D174: 0.0516 | E174: =D174*100 -> 5.16 | F174: =G174*100 -> 10.51 | G174: 0.1051 | H174: =_xlfn.IFS(D174<30%,"轻载",80%<D174<100%,"重载",D174>100%,"过载") -> 轻载 | I174: =(L174-L174*D174)*0.9 -> 537.74 | J174: =IF(H174="过载","是","否") -> 否 | K174: 昌宁县田园镇龙井社区 | L174: 630
A175: 173 | B175: 10kV宝达线022回路龙井社区隆祥花园二期2#台变 | C175: 10kV | D175: 0.086 | E175: =D175*100 -> 8.6 | F175: =G175*100 -> 15.45 | G175: 0.1545 | H175: =_xlfn.IFS(D175<30%,"轻载",80%<D175<100%,"重载",D175>100%,"过载") -> 轻载 | I175: =(L175-L175*D175)*0.9 -> 518.24 | J175: =IF(H175="过载","是","否") -> 否 | K175: 昌宁县田园镇龙井社区 | L175: 630
A176: 174 | B176: 10kV宝达线022回路龙井社区隆祥花园二期3#台变 | C176: 10kV | D176: 0.0371 | E176: 3.71 | F176: 7.81 | G176: 0.0781 | H176: 轻载 | I176: =(L176-L176*M176)*0.9 -> 545.96 | J176: =IF(H176="过载","是","否") -> 否 | K176: 昌宁县田园镇龙井社区 | L176: 630 | M176: =E176/100 -> 0.0371
A177: 175 | B177: 10kV宝达线022回路龙井社区隆祥花园二期4#台变 | C177: 10kV | D177: 0.05182144 | E177: =D177*100 -> 5.18 | F177: =G177*100 -> 9.68 | G177: 0.0968 | H177: =_xlfn.IFS(D177<30%,"轻载",80%<D177<100%,"重载",D177>100%,"过载") -> 轻载 | I177: =(L177-L177*D177)*0.9 -> 853.36 | J177: =IF(H177="过载","是","否") -> 否 | K177: 昌宁县田园镇龙井社区 | L177: 1000
A178: 176 | B178: 10kV宝达线022回路龙井社区隆祥花园二期5#台变 | C178: 10kV | D178: 0.01579584 | E178: =D178*100 -> 1.58 | F178: =G178*100 -> 4.4 | G178: 0.044 | H178: =_xlfn.IFS(D178<30%,"轻载",80%<D178<100%,"重载",D178>100%,"过载") -> 轻载 | I178: =(L178-L178*D178)*0.9 -> 885.78 | J178: =IF(H178="过载","是","否") -> 否 | K178: 昌宁县田园镇龙井社区 | L178: 1000
A179: 177 | B179: 10kV宝达线022回路达丙社区明丰苑台变 | C179: 10kV | D179: 0.03720336 | E179: =D179*100 -> 3.72 | F179: =G179*100 -> 16.33 | G179: 0.1633 | H179: =_xlfn.IFS(D179<30%,"轻载",80%<D179<100%,"重载",D179>100%,"过载") -> 轻载 | I179: =(L179-L179*D179)*0.9 -> 693.21 | J179: =IF(H179="过载","是","否") -> 否 | K179: 昌宁县田园镇达丙社区 | L179: 800
A180: 178 | B180: 10kV宝达线022回路达丙社区宁和苑小区1#台变 | C180: 10kV | D180: 0.0340338 | E180: =D180*100 -> 3.40 | F180: =G180*100 -> 10.85 | G180: 0.1085 | H180: =_xlfn.IFS(D180<30%,"轻载",80%<D180<100%,"重载",D180>100%,"过载") -> 轻载 | I180: =(L180-L180*D180)*0.9 -> 695.50 | J180: =IF(H180="过载","是","否") -> 否 | K180: 昌宁县田园镇达丙社区 | L180: 800
A181: 179 | B181: 10kV宝达线022回路达丙社区宁和苑小区2#台变 | C181: 10kV | D181: 0.034 | E181: =D181*100 -> 3.4 | F181: =G181*100 -> 6.32 | G181: 0.0632 | H181: =_xlfn.IFS(D181<30%,"轻载",80%<D181<100%,"重载",D181>100%,"过载") -> 轻载 | I181: =(L181-L181*D181)*0.9 -> 695.52 | J181: =IF(H181="过载","是","否") -> 否 | K181: 昌宁县田园镇达丙社区 | L181: 800
A182: 180 | B182: 10kV宝达线022回路达丙社区宁和苑小区3#台变 | C182: 10kV | D182: 0.1366548 | E182: =D182*100 -> 13.67 | F182: =G182*100 -> 19.03 | G182: 0.1903 | H182: =_xlfn.IFS(D182<30%,"轻载",80%<D182<100%,"重载",D182>100%,"过载") -> 轻载 | I182: =(L182-L182*D182)*0.9 -> 621.61 | J182: =IF(H182="过载","是","否") -> 否 | K182: 昌宁县田园镇达丙社区 | L182: 800
A183: 181 | B183: 10kV宝达线022回路达丙社区宁和苑小区4#台变 | C183: 10kV | D183: 0.0436464 | E183: =D183*100 -> 4.36 | F183: =G183*100 -> 8.62 | G183: 0.0862 | H183: =_xlfn.IFS(D183<30%,"轻载",80%<D183<100%,"重载",D183>100%,"过载") -> 轻载 | I183: =(L183-L183*D183)*0.9 -> 688.57 | J183: =IF(H183="过载","是","否") -> 否 | K183: 昌宁县田园镇达丙社区 | L183: 800
A184: 182 | B184: 10kV宝达线022回路达丙社区宁和苑小区5#台变 | C184: 10kV | D184: 0.06179776 | E184: =D184*100 -> 6.18 | F184: =G184*100 -> 21.91 | G184: 0.2191 | H184: =_xlfn.IFS(D184<30%,"轻载",80%<D184<100%,"重载",D184>100%,"过载") -> 轻载 | I184: =(L184-L184*D184)*0.9 -> 422.19 | J184: =IF(H184="过载","是","否") -> 否 | K184: 昌宁县田园镇达丙社区 | L184: 500
A185: 183 | B185: 10kV宝达线022回路达丙社区宁熙苑小区1#台变 | C185: 10kV | D185: 0.01240441905 | E185: =D185*100 -> 1.24 | F185: =G185*100 -> 3.14 | G185: 0.0314 | H185: =_xlfn.IFS(D185<30%,"轻载",80%<D185<100%,"重载",D185>100%,"过载") -> 轻载 | I185: =(L185-L185*D185)*0.9 -> 559.97 | J185: =IF(H185="过载","是","否") -> 否 | K185: 昌宁县田园镇达丙社区 | L185: 630
A186: 184 | B186: 10kV宝达线022回路达丙社区宁熙苑小区2#台变 | C186: 10kV | D186: 0.0138 | E186: =D186*100 -> 1.38 | F186: =G186*100 -> 4.31 | G186: 0.0431 | H186: =_xlfn.IFS(D186<30%,"轻载",80%<D186<100%,"重载",D186>100%,"过载") -> 轻载 | I186: =(L186-L186*D186)*0.9 -> 559.18 | J186: =IF(H186="过载","是","否") -> 否 | K186: 昌宁县田园镇达丙社区 | L186: 630
A187: 185 | B187: 10kV宝达线022回路达丙社区桥边台变 | C187: 10kV | D187: 0.2161 | E187: =D187*100 -> 21.61 | F187: =G187*100 -> 42.77 | G187: 0.4277 | H187: 轻载 | I187: =(L187-L187*D187)*0.9 -> 444.47 | J187: =IF(H187="过载","是","否") -> 否 | K187: 昌宁县田园镇达丙社区 | L187: 630
A188: 186 | B188: 10kV宝达线022回路宝丰社区山水田苑1#台变 | C188: 10kV | D188: 0.0401 | E188: 9.22 | F188: 23.69 | G188: 0.0827 | H188: 轻载 | I188: =(L188-L188*M188)*0.9 -> 653.62 | J188: =IF(H188="过载","是","否") -> 否 | K188: 昌宁县田园镇宝丰社区 | L188: 800 | M188: =E188/100 -> 0.0922
A189: 187 | B189: 10kV宝达线022回路宝丰社区山水田苑2#台变 | C189: 10kV | D189: 0.0367 | E189: 1.74 | F189: 3.16 | G189: 0.0644 | H189: 轻载 | I189: =(L189-L189*M189)*0.9 -> 707.47 | J189: =IF(H189="过载","是","否") -> 否 | K189: 昌宁县田园镇宝丰社区 | L189: 800 | M189: =E189/100 -> 0.0174
A190: 188 | B190: 10kV宝达线022回路宝丰社区山水田苑3#台变 | C190: 10kV | D190: 0.0452 | E190: =D190*100 -> 4.52 | F190: =G190*100 -> 8.92 | G190: 0.0892 | H190: =_xlfn.IFS(D190<30%,"轻载",80%<D190<100%,"重载",D190>100%,"过载") -> 轻载 | I190: =(L190-L190*D190)*0.9 -> 687.46 | J190: =IF(H190="过载","是","否") -> 否 | K190: 昌宁县田园镇宝丰社区 | L190: 800
A191: 189 | B191: 10kV宝达线022回路宝丰社区山水田苑4#台变 | C191: 10kV | D191: 0.0526 | E191: =D191*100 -> 5.26 | F191: =G191*100 -> 12.83 | G191: 0.1283 | H191: =_xlfn.IFS(D191<30%,"轻载",80%<D191<100%,"重载",D191>100%,"过载") -> 轻载 | I191: =(L191-L191*D191)*0.9 -> 682.13 | J191: =IF(H191="过载","是","否") -> 否 | K191: 昌宁县田园镇宝丰社区 | L191: 800
A192: 190 | B192: 10kV宝达线022回路宝丰社区山水田苑二期1#台变 | C192: 10kV | D192: 0.0129 | E192: =D192*100 -> 1.29 | F192: =G192*100 -> 4.09 | G192: 0.0409 | H192: =_xlfn.IFS(D192<30%,"轻载",80%<D192<100%,"重载",D192>100%,"过载") -> 轻载 | I192: =(L192-L192*D192)*0.9 -> 559.69 | J192: =IF(H192="过载","是","否") -> 否 | K192: 昌宁县田园镇宝丰社区 | L192: 630
A193: 191 | B193: 10kV宝达线022回路宝丰社区山水田苑二期2#台变 | C193: 10kV | D193: 0.03193478095 | E193: =D193*100 -> 3.19 | F193: =G193*100 -> 6.48 | G193: 0.0648 | H193: =_xlfn.IFS(D193<30%,"轻载",80%<D193<100%,"重载",D193>100%,"过载") -> 轻载 | I193: =(L193-L193*D193)*0.9 -> 548.89 | J193: =IF(H193="过载","是","否") -> 否 | K193: 昌宁县田园镇宝丰社区 | L193: 630
A194: 192 | B194: 10kV宝达线022回路宝丰社区山水田苑二期3#台变 | C194: 10kV | D194: 0.0053 | E194: =D194*100 -> 0.53 | F194: =G194*100 -> 2.6 | G194: 0.026 | H194: =_xlfn.IFS(D194<30%,"轻载",80%<D194<100%,"重载",D194>100%,"过载") -> 轻载 | I194: =(L194-L194*D194)*0.9 -> 563.99 | J194: =IF(H194="过载","是","否") -> 否 | K194: 昌宁县田园镇宝丰社区 | L194: 630
A195: 193 | B195: 10kV宝达线022回路宝丰社区山水田苑二期4#台变 | C195: 10kV | D195: 0.0195303619 | E195: =D195*100 -> 1.95 | F195: =G195*100 -> 4.36 | G195: 0.0436 | H195: =_xlfn.IFS(D195<30%,"轻载",80%<D195<100%,"重载",D195>100%,"过载") -> 轻载 | I195: =(L195-L195*D195)*0.9 -> 555.93 | J195: =IF(H195="过载","是","否") -> 否 | K195: 昌宁县田园镇宝丰社区 | L195: 630
A196: 194 | B196: 10kV宝达线022回路宝丰社区山水田苑箱变 | C196: 10kV | D196: 0.1236 | E196: 12.36 | F196: 29.77 | G196: 0.2977 | H196: 轻载 | I196: =(L196-L196*M196)*0.9 -> 631.01 | J196: =IF(H196="过载","是","否") -> 否 | K196: 昌宁县田园镇宝丰社区 | L196: 800 | M196: =E196/100 -> 0.1236
A197: 195 | B197: 10kV宝达线022回路达丙社区饲料站台变 | C197: 10kV | D197: 0.1572 | E197: =D197*100 -> 15.72 | F197: =G197*100 -> 50.94 | G197: 0.5094 | H197: =_xlfn.IFS(D197<30%,"轻载",80%<D197<100%,"重载",D197>100%,"过载") -> 轻载 | I197: =(L197-L197*D197)*0.9 -> 189.63 | J197: =IF(H197="过载","是","否") -> 否 | K197: 昌宁县田园镇达丙社区 | L197: 250
A198: 196 | B198: 10kV宝达线022回路达丙社区体育馆台变 | C198: 10kV | D198: 0.07442651429 | E198: =D198*100 -> 7.44 | F198: =G198*100 -> 17.63 | G198: 0.1763 | H198: =_xlfn.IFS(D198<30%,"轻载",80%<D198<100%,"重载",D198>100%,"过载") -> 轻载 | I198: =(L198-L198*D198)*0.9 -> 262.40 | J198: =IF(H198="过载","是","否") -> 否 | K198: 昌宁县田园镇达丙社区 | L198: 315
A199: 197 | B199: 10kV宝达线022回路宝丰社区下宝丰台变 | C199: 10kV | D199: 0.12595104 | E199: =D199*100 -> 12.60 | F199: =G199*100 -> 35.59 | G199: 0.3559 | H199: =_xlfn.IFS(D199<30%,"轻载",80%<D199<100%,"重载",D199>100%,"过载") -> 轻载 | I199: =(L199-L199*D199)*0.9 -> 157.33 | J199: =IF(H199="过载","是","否") -> 否 | K199: 昌宁县田园镇宝丰社区 | L199: 200
A200: 198 | B200: 10kV宝达线022回路右文社区永顺府小区1#台变 | C200: 10kV | D200: 0.0095 | E200: =D200*100 -> 0.95 | F200: =G200*100 -> 1.49 | G200: 0.0149 | H200: =_xlfn.IFS(D200<30%,"轻载",80%<D200<100%,"重载",D200>100%,"过载") -> 轻载 | I200: =(L200-L200*D200)*0.9 -> 891.45 | J200: =IF(H200="过载","是","否") -> 否 | K200: 昌宁县田园镇右文社区 | L200: 1000
... 1848 more rows
